Cogmind - Beta 14 @@@ ROGUE MODE // 2024.12.06 @ 22:56:27 Player: Occam Result: Self-destructed Performance ------------- Evolutions (7) 3500 Regions Visited (34) 6800 Robots Destroyed (311) 1555 Value Destroyed (6086) 6086 Prototype IDs (107) 2140 Alien Tech Used (3) 600 Bonus (307) 307 TOTAL SCORE: 20988 Bonus ------- Follower Combat Kills 449 Network Hubs Disabled 200 Aligned with FarCom 300 Met Data Miner 300 Met Zhirov 300 Friendly Fire -1242 Cogmind --------- Core Integrity 1161/1300 Matter 247/300 Energy 7/100 System Corruption 5% Temperature Cool (0) Movement Core (950) Ox18 Location -3/Research Parts ------- > --- POWER (2) -------- (None) > --- PROPULSION (7) --- Cooled Nuclear Pulse Thruster Field Propulsion Array Cooled Q-thruster Cooled Q-thruster Cooled Q-thruster Cooled Q-thruster > --- UTILITY (11) ----- High-capacity Storage Unit Advanced Gravity Neutralizer Modified TNC Centrium Light Armor Plating Improved Hacking Suite Improved Hacking Suite Experimental Hacking Suite Experimental Hacking Suite Experimental Hacking Suite Improved System Shield > --- WEAPON (2) ------- Matter Neutralizer Nanosword > --- INVENTORY (20) --- Cooled Q-thruster Experimental Power Amplifier Structural Scanner Experimental Sensor Array Advanced Terrain Scanner Experimental Terrain Scan Processor Improved Phase Shifter Experimental Hacking Suite Authchip [Power] Authchip [Propulsion] Authchip [Device] Authchip [Processor] Authchip [Processor] Authchip [Armor] Advanced System Restoration Module Advanced Trap Extractor (8/8 Shock) Mini Smartbomb Launcher Peak State ------------ > --- POWER ------------ Light Neutrino Core Mini Fusion Reactor > --- PROPULSION ------- Cooled Nuclear Pulse Thruster Field Propulsion Array Cooled Q-thruster Cooled Q-thruster Cooled Q-thruster Cooled Q-thruster > --- UTILITY ---------- High-capacity Storage Unit Advanced Gravity Neutralizer Modified TNC Advanced Phase Shifter Centrium Light Armor Plating Experimental Hacking Suite Experimental Hacking Suite Experimental Hacking Suite Experimental System Shield > --- WEAPON ----------- Advanced Datajack Nanosword > --- INVENTORY -------- Cooled Q-thruster Cooled Q-thruster Advanced Energy Well Structural Scanner Experimental Sensor Array Advanced Terrain Scanner Experimental Terrain Scan Processor Experimental Hacking Suite Authchip [Power] Authchip [Propulsion] Authchip [Device] Authchip [Processor] Authchip [Processor] Authchip [Armor] Advanced System Restoration Module Advanced Trap Extractor Transdimensional Reconstructor Phase Cannon Mini Smartbomb Launcher Plasma Sword [Rating: 169] Favorites ----------- Power Light Neutrino Core Engine Ion Engine Power Core Light Neutrino Core Reactor Mini Fusion Reactor Propulsion Cooled Nuclear Pulse Thruster Treads Light Treads Leg Aluminum Leg Wheel Compact Wheel Flight Unit Cooled Nuclear Pulse Thruster Utility Advanced Hacking Suite Device Structural Scanner Storage Medium Storage Unit Processor Modified TNC Hackware Advanced Hacking Suite Protection Improved Light Armor Plating Weapon Assault Rifle Energy Gun Beamcaster Energy Cannon Phase Cannon Ballistic Gun Assault Rifle Launcher Mini Smartbomb Launcher Impact Weapon Impact Mace Slashing Weapon Plasma Sword Special Melee Weapon Improved Datajack Build | -11 -10 -10 -10 -9 -8 -7 -7 -7 -7 -7 -7 -6 -6 -6 -6 -6 -6 -6 -5 -5 -5 -5 -5 -5 -5 -4 -4 -4 -4 -4 -4 -4 -4 -3 ------- Run | Yrd Mat Min Exi Min Mat Fac Was Fac Low Low Zio Pro Fac Was Fac Low Low Dat Pro Fac Was Fac Upp Upp Zhi Pro Fac Was Fac Ext Cet Arc Hub Res Slots Evolved 14 | . . . . . 4 2 . . . . . . 2 . . . . . . 2 . . . . . . 2 . . . . . . 2 Power 1 | . . . . . . . . . . . . . . . . . . . . . . . . . . . 1 . . . . . . . Propulsion 4 | . . . . . 1 . . . . . . . 1 . . . . . . 2 . . . . . . . . . . . . . . Utility 9 | . . . . . 3 2 . . . . . . 1 . . . . . . . . . . . . . 1 . . . . . . 2 Weapon . | . . . . . . . . . . . . . . . . . . . . . . . . . . . . . . . . . . . Parts Attached 446 | 1 12 4 . 10 62 36 . 26 . . 2 . 53 . 35 1 2 . 3 63 . 26 6 3 8 . 32 . 25 12 2 4 4 14 Power 27 | . 1 . . 1 8 2 . 1 . . . . 1 . . . . . . 5 . . . . 2 . 1 . 3 . . 1 . 1 Engine 11 | . 1 . . 1 6 . . . . . . . . . . . . . . . . . . . . . . . 1 . . 1 . 1 Core 12 | . . . . . 2 2 . 1 . . . . 1 . . . . . . 3 . . . . . . 1 . 2 . . . . . Reactor 4 | . . . . . . . . . . . . . . . . . . . . 2 . . . . 2 . . . . . . . . . Propulsion 75 | . 4 1 . 1 20 5 . 6 . . . . 7 . 2 . . . . 18 . 5 . . 1 . 1 . 1 . . 1 . 2 Treads 17 | . 3 1 . . 13 . . . . . . . . . . . . . . . . . . . . . . . . . . . . . Leg . | . . . . . . . . . . . . . . . . . . . . . . . . . . . . . . . . . . . Wheel 6 | . 1 . . 1 4 . . . . . . . . . . . . . . . . . . . . . . . . . . . . . Hover . | . . . . . . . . . . . . . . . . . . . . . . . . . . . . . . . . . . . Flight 52 | . . . . . 3 5 . 6 . . . . 7 . 2 . . . . 18 . 5 . . 1 . 1 . 1 . . 1 . 2 Utility 173 | 1 3 . . 4 18 19 . 8 . . 2 . 21 . 16 1 . . 2 18 . 15 2 1 3 . 16 . 12 1 . 1 1 8 Device 82 | 1 1 . . 4 9 5 . 3 . . 1 . 12 . 7 1 . . 1 10 . 7 1 1 1 . 4 . 7 1 . . 1 4 Storage 10 | . 2 . . . . 3 . 1 . . . . 1 . . . . . . 1 . . . . 1 . 1 . . . . . . . Processor 5 | . . . . . 3 . . . . . . . 1 . 1 . . . . . . . . . . . . . . . . . . . Hackware 53 | . . . . . 2 9 . 2 . . 1 . 6 . 7 . . . . 5 . 7 1 . . . 6 . 4 . . 1 . 2 Protection 23 | . . . . . 4 2 . 2 . . . . 1 . 1 . . . 1 2 . 1 . . 1 . 5 . 1 . . . . 2 Artifact . | . . . . . . . . . . . . . . . . . . . . . . . . . . . . . . . . . . . Weapon 171 | . 4 3 . 4 16 10 . 11 . . . . 24 . 17 . 2 . 1 22 . 6 4 2 2 . 14 . 9 11 2 1 3 3 Energy Gun 15 | . . 1 . 2 6 . . . . . . . . . 2 . . . . 4 . . . . . . . . . . . . . . Energy Cannon 37 | . . . . . . . . . . . . . 7 . 7 . . . . 6 . 2 2 1 . . 6 . 4 . . . 1 1 Ballistic Gun 14 | . 2 1 . 1 5 . . 4 . . . . 1 . . . . . . . . . . . . . . . . . . . . . Ballistic Cannon . | . . . . . . . . . . . . . . . . . . . . . . . . . . . . . . . . . . . Launcher 26 | . 2 . . 1 4 3 . 1 . . . . 3 . . . 1 . . 2 . 1 . . . . 1 . . 5 1 . 1 . Special Weapon . | . . . . . . . . . . . . . . . . . . . . . . . . . . . . . . . . . . . Impact Weapon 3 | . . . . . . 1 . 2 . . . . . . . . . . . . . . . . . . . . . . . . . . Slashing Weapon 64 | . . . . . 1 5 . 4 . . . . 11 . 8 . . . 1 7 . 2 2 1 1 . 6 . 5 5 1 1 1 2 Piercing Weapon . | . . . . . . . . . . . . . . . . . . . . . . . . . . . . . . . . . . . Special Melee Weapon 12 | . . 1 . . . 1 . . . . . . 2 . . . 1 . . 3 . 1 . . 1 . 1 . . 1 . . . . Unidentified Prototypes 17 | . . . . 1 1 2 . 1 . . 1 . 1 . . . . . . 5 . . . 1 4 . . . . . . . . . Parts Lost 26 | . . . . . 11 . . . . . . . . . 2 . 1 . 1 1 . 1 . . . . 2 . . . 1 2 1 3 Power 6 | . . . . . 2 . . . . . . . . . . . . . . . . . . . . . . . . . . 1 1 2 Propulsion 6 | . . . . . 5 . . . . . . . . . . . . . . . . . . . . . . . . . . 1 . . Utility 9 | . . . . . 2 . . . . . . . . . 1 . . . 1 1 . 1 . . . . 1 . . . 1 . . 1 Weapon 5 | . . . . . 2 . . . . . . . . . 1 . 1 . . . . . . . . . 1 . . . . . . . Highest Loss Streak 3 | . . . . . 3 . . . . . . . . . 1 . 1 . 1 1 . 1 . . . . 1 . . . 1 2 1 3 To Critical Strikes . | . . . . . . . . . . . . . . . . . . . . . . . . . . . . . . . . . . . Average Slot Usage (%) 98 | . 100 99 85 100 98 99 100 99 100 100 100 100 99 100 99 100 97 100 98 98 100 99 100 99 97 100 94 95 94 95 93 92 95 91 Engine 3 | . 14 14 14 14 7 . . . . . . . . . . . . . . . . . . . . . . . . . . 2 5 2 Core 4 | . . . . . . 7 7 7 7 7 7 7 6 6 6 6 6 6 6 4 5 5 5 5 1 . 5 5 4 5 5 . . . Treads 4 | . 22 14 14 14 18 . . . . . . . . . . . . . . . . . . . . . . . . . . . . . Wheel 2 | . 4 14 14 14 8 . . . . . . . . . . . . . . . . . . . . . . . . . . . . . Flight 21 | . . . . . . 22 23 23 23 23 23 23 25 26 26 26 26 26 26 33 35 35 35 34 37 38 30 30 30 30 30 30 30 26 Device 9 | . 14 14 14 14 20 7 7 7 15 15 15 15 5 6 5 12 13 13 10 4 . 4 11 11 8 11 6 10 9 10 8 5 10 8 Storage 6 | . 14 14 14 14 9 6 7 6 . . . . 4 6 6 6 6 6 6 5 5 5 5 5 5 5 5 5 5 5 5 5 5 4 Processor 3 | . . . . . 8 4 . . . . . . 2 6 6 6 6 6 6 5 5 5 5 5 5 5 5 5 5 5 5 5 5 4 Hackware 22 | . . . . . . 32 38 37 30 30 30 30 37 33 31 26 26 26 21 29 29 27 17 16 16 16 24 25 24 20 20 23 25 29 Protection 1 | . . . . . 6 . . . 7 7 7 7 1 . 1 . . . 5 . 5 . 5 5 6 5 3 . . 5 5 5 . 1 Energy Gun 2 | . . 9 . 13 10 . . . . . . . . . 3 6 3 . . 2 5 1 . . . . . . . . . . . . Ballistic Gun 5 | . 27 18 . 14 7 7 7 6 7 7 7 7 5 6 2 . . . . . . . . . . . . . . . . . . . Slashing Weapon 4 | . . . . . . 4 7 6 7 7 7 7 5 6 5 6 1 . . 4 5 4 4 4 3 5 4 5 8 4 3 9 9 7 Peak Build Rating 169 | 8 10 17 10 26 30 54 52 61 61 61 63 63 87 81 90 93 93 92 94 137 125 131 129 126 143 138 158 156 165 169 169 163 156 169 Average Rating 78 | 6 8 13 10 21 26 44 52 55 61 61 62 63 75 81 82 92 92 92 88 103 125 122 125 125 134 138 148 156 159 168 165 159 155 161 On Entrance 89 | 6 7 9 10 10 18 29 52 52 61 61 61 63 63 81 81 87 93 92 92 87 125 125 126 126 126 138 138 156 156 162 169 160 163 149 Naked Turns . | . . . . . . . . . . . . . . . . . . . . . . . . . . . . . . . . . . . Heaviest Build 100 | 13 90 95 87 95 100 16 15 15 14 14 14 14 21 19 24 24 23 21 24 40 39 40 45 40 42 40 64 64 65 67 65 65 65 65 Greatest Support 71 | 20 40 16 16 16 60 27 15 16 15 15 15 15 23 34 24 24 24 24 36 42 41 42 47 41 48 54 65 65 71 71 71 65 71 65 Greatest Overweight (x) 8 | . 5 5 5 5 8 . . . . . . . . . . . . . . 1 . . 1 . . . . . . 1 . . . 2 Average Overweight (x) . | . 2 5 5 5 6 . . . . . . . . . . . . . . . . . . . . . . . . . . . . . Largest Inventory Capacity 25 | 8 25 25 25 25 25 25 8 8 5 5 5 5 10 10 10 10 10 10 10 15 15 15 15 15 15 15 20 20 20 20 20 20 20 20 Average Capacity 14 | 8 17 25 25 25 25 7 8 7 5 5 5 5 8 10 10 10 10 10 10 12 15 15 15 15 15 15 16 20 20 20 20 20 20 20 Most Carried 25 | 8 21 25 25 25 25 8 8 8 5 5 5 5 10 10 10 10 10 9 10 15 15 15 15 15 15 15 20 20 20 20 20 20 20 20 Average Carried 13 | 6 13 23 24 24 24 6 8 7 5 5 5 5 7 10 9 10 9 9 9 12 15 14 14 14 14 15 16 20 19 20 20 19 20 19 Final Capacity 25 | 8 25 25 25 25 25 8 8 8 5 5 5 5 10 10 10 10 10 10 10 15 15 15 15 15 15 15 20 20 20 20 20 20 20 20 Final Carried 25 | 7 20 25 25 25 7 8 8 8 5 5 5 5 10 10 10 10 9 9 9 15 15 15 15 15 15 15 20 20 20 20 20 20 20 17 Class Distribution -------------------- 31% | Wizard-Scout 21% | Wizard-Sprinter 13% | Mutant 13% | Hacker-Sprinter 6% | Scavenger-Mutant 6% | Hacker-Scout Dominant Class ---------------- Mutant | -10/Materials Mutant | -10/Mines Mutant | -10/Exiles Mutant | -9/Mines Scavenger-Mutant | -8/Materials Hacker-Scout | -7/Factory Wizard-Sprinter | -7/Waste Wizard-Sprinter | -7/Factory Hacker-Sprinter | -7/Lower Caves Hacker-Sprinter | -7/Lower Caves Hacker-Sprinter | -7/Zion Hacker-Sprinter | -6/Proximity Caves Wizard-Sprinter | -6/Factory Wizard-Scout | -6/Waste Wizard-Scout | -6/Factory Hacker-Sprinter | -6/Lower Caves Hacker-Sprinter | -6/Lower Caves Hacker-Sprinter | -6/Data Miner Hacker-Sprinter | -5/Proximity Caves Wizard-Scout | -5/Factory Wizard-Scout | -5/Waste Wizard-Scout | -5/Factory Hacker-Sprinter | -5/Upper Caves Hacker-Sprinter | -5/Upper Caves Hacker-Sprinter | -5/Zhirov Hacker-Sprinter | -4/Proximity Caves Wizard-Scout | -4/Factory Wizard-Scout | -4/Waste Wizard-Scout | -4/Factory Wizard-Sprinter | -4/Extension Wizard-Sprinter | -4/Cetus Wizard-Sprinter | -4/Archives Wizard-Scout | -4/Hub_04(d) Wizard-Assassin | -3/Research Resources | -11 -10 -10 -10 -9 -8 -7 -7 -7 -7 -7 -7 -6 -6 -6 -6 -6 -6 -6 -5 -5 -5 -5 -5 -5 -5 -4 -4 -4 -4 -4 -4 -4 -4 -3 ----------- Run | Yrd Mat Min Exi Min Mat Fac Was Fac Low Low Zio Pro Fac Was Fac Low Low Dat Pro Fac Was Fac Upp Upp Zhi Pro Fac Was Fac Ext Cet Arc Hub Res Matter Collected 7693 | 247 636 173 . 165 960 462 . 292 23 . 20 . 725 . 378 10 315 . 60 1115 . 255 130 . 205 . 440 . 216 607 19 111 10 119 Remotely . | . . . . . . . . . . . . . . . . . . . . . . . . . . . . . . . . . . . Salvage Created 13062 | 98 719 127 . 156 1573 645 . 693 . . . . 941 . 1250 . 138 . 31 2232 . 780 5 45 283 . 1118 . 481 858 . 620 12 257 Parts 742 | 6 51 9 . 12 94 50 . 38 . . . . 48 . 89 . 6 . 1 105 . 44 . 1 3 . 63 . 24 42 . 35 2 19 Haulers Intercepted 10 | . 2 . . . 5 1 . 1 . . . . . . . . . . . 1 . . . . . . . . . . . . . . Recyclers Shooed 10 | . 2 . . . 1 1 . . . . . . 2 . 1 . . . . 2 . 1 . . . . . . . . . . . . Parts Field Recycled . | . . . . . . . . . . . . . . . . . . . . . . . . . . . . . . . . . . . Retrieved Matter . | . . . . . . . . . . . . . . . . . . . . . . . . . . . . . . . . . . . Parts Self-Destructed 17 | . . . . . . . . . . . . 4 . . . . 7 . 1 . . . 2 1 2 . . . . . . . . . Prevented 8 | . . . . . . . . . . . . . . . . . 2 . . . . . 6 . . . . . . . . . . . Kills | -11 -10 -10 -10 -9 -8 -7 -7 -7 -7 -7 -7 -6 -6 -6 -6 -6 -6 -6 -5 -5 -5 -5 -5 -5 -5 -4 -4 -4 -4 -4 -4 -4 -4 -3 ------- Run | Yrd Mat Min Exi Min Mat Fac Was Fac Low Low Zio Pro Fac Was Fac Low Low Dat Pro Fac Was Fac Upp Upp Zhi Pro Fac Was Fac Ext Cet Arc Hub Res Combat Hostiles Destroyed 96 | . 12 2 . 7 28 4 . 5 . . . . . . 3 . 5 . 3 9 . . 1 1 . 1 4 . . 4 . 4 . 3 Melee 17 | . . . . . . . . 1 . . . . . . 3 . . . . 3 . . . . . . . . . 3 . 4 . 3 Guns 33 | . 8 2 . 4 19 . . . . . . . . . . . . . . . . . . . . . . . . . . . . . AOE 46 | . 4 . . 3 9 4 . 4 . . . . . . . . 5 . 3 6 . . 1 1 . 1 4 . . 1 . . . . Classes Destroyed 17 | 2 6 1 . 1 3 . . 1 . . . . . . . . . . 1 . . . . . . . . . . 2 . . . . Worker 21 | . . . . . 4 3 . . . . . . 2 . 3 . . . . 3 . 1 . . . . 3 . 1 . . . 1 . Builder 53 | . 5 1 . 1 2 9 . 3 . . . . 2 . 8 . . . . 9 . 3 . . . . 3 . 1 5 . . . 1 Tunneler 8 | 2 . . . . . 1 . . . . . . . . . . . . . 1 . 1 . . . . 3 . . . . . . . Hauler 10 | . 2 . . . 5 1 . 1 . . . . . . . . . . . 1 . . . . . . . . . . . . . . Recycler 54 | 1 4 . . 1 4 3 . 4 . . . . 7 . 6 . . . . 12 . 4 . . . . 5 . 1 2 . . . . Mechanic 4 | . . . . . 2 . . 1 . . . . . . . . . . . . . . . . . . . . 1 . . . . . Operator 14 | . 3 . . . . . . . . . . . . . 1 . . . . . . . . . . . 1 . 1 1 . 7 . . Drone 2 | . . . . . . . . . . . . . . . . . . . 1 . . . . . . 1 . . . . . . . . Watcher 45 | . 3 . . . 2 5 . 5 . . . . 2 . 5 . . . . 7 . 5 . . . . 4 . 6 . . . . 1 Swarmer 50 | . 9 . . 6 11 4 . 4 . . . . . . . . . . 2 9 . . 1 . . . 4 . . . . . . . Grunt 17 | . 3 . . . 12 . . . . . . . . . . . . . . . . . . 1 . . . . . 1 . . . . Sentry 13 | . . 2 . . 4 . . . . . . . . . . . . . . . . . . . . . . . . 3 . 4 . . Demolisher 1 | . . . . 1 . . . . . . . . . . . . . . . . . . . . . . . . . . . . . . Hunter 4 | . . . . . 1 . . . . . . . . . . . 3 . . . . . . . . . . . . . . . . . Programmer 9 | . . . . . . . . 1 . . . . . . 3 . 2 . . . . . . . . . . . . . . . . 3 Thug 2 | . . . . . . . . . . . . . . . . . . . . . . . . . . . . . . 2 . . . . Savage 1 | . . . . . . . . . . . . . . . . . . . . . . . . . . . . . . 1 . . . . Butcher 1 | . . . . . . . . . . . . . . . . . . . . . . . . . . . . . . 1 . . . . Guerrilla 2 | . . . . . . . . . . . . . . . . . . . . . . . . . . . . . . 2 . . . . Best Kill Streak 8 | 3 5 2 . 5 8 6 . 5 . . . . 3 . 5 . 2 . 3 6 . 3 1 1 . 1 4 . 2 4 . 4 1 3 Combat Bots Only 7 | . 3 2 . 3 7 4 . 5 . . . . . . 2 . 2 . 3 4 . . 1 1 . 1 4 . . 1 . 2 . 3 Max Kills in Single Turn 3 | 1 2 1 . 2 3 3 . 2 . . . . 1 . 1 . 2 . 2 3 . 1 1 1 . 1 2 . 1 3 . 1 1 1 Gunslinging 1 | . . . . 1 . . . . . . . . . . . . . . . . . . . . . . . . . . . . . . Exploded 3 | . 2 . . 2 3 2 . 2 . . . . . . . . 2 . 2 3 . . 1 1 . 1 2 . . 1 . . . . Melee 1 | . . . . . . . . 1 . . . . . . 1 . . . . 1 . . . . . . . . . 1 . 1 . 1 Uniques/NPCs Destroyed . | . . . . . . . . . . . . . . . . . . . . . . . . . . . . . . . . . . . Combat | -11 -10 -10 -10 -9 -8 -7 -7 -7 -7 -7 -7 -6 -6 -6 -6 -6 -6 -6 -5 -5 -5 -5 -5 -5 -5 -4 -4 -4 -4 -4 -4 -4 -4 -3 -------- Run | Yrd Mat Min Exi Min Mat Fac Was Fac Low Low Zio Pro Fac Was Fac Low Low Dat Pro Fac Was Fac Upp Upp Zhi Pro Fac Was Fac Ext Cet Arc Hub Res Hostile Shots Fired 515 | . 51 . . 19 149 22 . 29 1 1 . . 6 . 54 . 12 . 33 14 . . 3 30 . . 8 . 16 13 7 17 2 28 Missed 200 | . 23 . . 3 41 14 . 14 . . . . 1 . 21 . 6 . 15 7 . . 2 16 . . 3 . 6 7 4 8 1 8 Damage Taken 5637 | . 278 . . 161 1679 113 . 302 16 15 . . 140 . 442 . 128 . 253 124 . 146 23 177 . . 106 . 311 221 115 238 181 468 Core 1368 | . 48 . . 68 305 33 . 57 16 . . . 48 . 123 . 9 . 60 37 . 58 . 98 . . 23 . 116 91 30 50 53 45 Absorbed by Shields 36 | . . . . . . . . . . . . . . . . . . . . . . . . . . . . . . 36 . . . . Regen/Repaired (Parts) 880 | . . . . . . . . 271 . . . . 44 . 88 . . . . 248 . 70 . . . . 48 . 63 . . . . 48 Core Remaining (%) 71 | 100 . . . 53 44 . . . . . . 84 . . . . . . 71 . . . . . . 80 . . . . . . 68 . Volleys Fired 422 | 11 78 3 . 11 110 3 . 4 . . . . 16 . 16 . 12 . 6 36 . 30 20 6 . 1 14 . 16 17 3 . 3 6 Largest 2 | 2 2 2 . 2 2 1 . 1 . . . . 2 . 1 . 1 . 1 1 . 1 1 1 . 1 1 . 1 1 1 . 1 1 Hottest 130 | 40 40 95 . 108 130 39 . 39 . . . . 105 . 85 . 80 . 80 85 . 85 85 85 . 80 85 . 85 80 80 . 105 105 Shots Fired 617 | 22 150 6 . 19 208 3 . 4 . . . . 19 . 16 . 12 . 6 36 . 30 20 6 . 1 14 . 16 17 3 . 3 6 Gun 392 | 22 144 6 . 16 197 . . 1 . . . . 6 . . . . . . . . . . . . . . . . . . . . . Cannon 145 | . . . . . . . . . . . . . 11 . 16 . . . . 31 . 30 18 3 . . 11 . 16 . . . 3 6 Launcher 80 | . 6 . . 3 11 3 . 3 . . . . 2 . . . 12 . 6 5 . . 2 3 . 1 3 . . 17 3 . . . Special . | . . . . . . . . . . . . . . . . . . . . . . . . . . . . . . . . . . . Kinetic 273 | 22 144 4 . 8 88 . . 1 . . . . 6 . . . . . . . . . . . . . . . . . . . . . Thermal 264 | . . 2 . 8 109 . . . . . . . 11 . 16 . . . . 31 . 30 18 3 . . 11 . 16 . . . 3 6 Explosive 80 | . 6 . . 3 11 3 . 3 . . . . 2 . . . 12 . 6 5 . . 2 3 . 1 3 . . 17 3 . . . Electromagnetic . | . . . . . . . . . . . . . . . . . . . . . . . . . . . . . . . . . . . Robot Hit Streak 15 | 10 8 4 . 6 15 . . . . . . . 2 . . . . . . . . . . . . . . . . 3 4 . . . Robot Miss Streak 5 | 1 5 1 . 1 3 2 . 3 . . . . 4 . . . . . . . . . . . . . . . . . . . . . Penetration Max . | . . . . . . . . . . . . . . . . . . . . . . . . . . . . . . . . . . . Secondary Targets 5 | . . 1 . 1 3 . . . . . . . . . . . . . . . . . . . . . . . . . . . . . Max Gunslinging Chain 1 | . . 1 . 1 1 . . . . . . . . . . . . . . . . . . . . . . . . . . . . . Shots Hit Robots 584 | 15 94 4 4 12 145 28 . 23 . . . . 28 . 42 . 1 1 . 50 . 21 . . 11 . 25 . 18 21 1 29 1 10 Core Hits 347 | 4 38 3 . 9 75 18 . 19 . . . . 11 . 17 . 11 . 7 31 . 11 1 7 3 1 15 . 11 31 6 11 1 6 Critical Kills . | . . . . . . . . . . . . . . . . . . . . . . . . . . . . . . . . . . . Critical Parts Destroyed 5 | 1 3 . . . . . . 1 . . . . . . . . . . . . . . . . . . . . . . . . . . Critical Strikes 20 | 1 3 . . . 4 1 . 1 . . . . 2 . . . . . . 1 . 1 . . . . . . . . . 4 . 2 Burn 4 | . . . . . 4 . . . . . . . . . . . . . . . . . . . . . . . . . . . . . Destroy 4 | 1 3 . . . . . . . . . . . . . . . . . . . . . . . . . . . . . . . . . Smash 1 | . . . . . . . . 1 . . . . . . . . . . . . . . . . . . . . . . . . . . Sever 11 | . . . . . . 1 . . . . . . 2 . . . . . . 1 . 1 . . . . . . . . . 4 . 2 Melee Attacks 895 | . . . 4 . . 93 . 76 2 2 1 1 102 . 120 1 2 1 1 125 . 86 3 7 11 1 75 . 84 28 1 37 7 24 Impact 25 | . . . . . . 24 . 1 . . . . . . . . . . . . . . . . . . . . . . . . . . Slashing 852 | . . . . . . 69 . 75 2 2 1 1 102 . 120 1 1 . 1 125 . 86 3 7 8 1 74 . 84 20 1 37 7 24 Piercing . | . . . . . . . . . . . . . . . . . . . . . . . . . . . . . . . . . . . Sneak Attacks 157 | . . . 4 . . 18 . 11 . . . . 15 . 22 . 1 1 . 28 . 9 . . 3 . 15 . 6 13 . 8 1 2 Combat Hostiles 4 | . . . . . . . . . . . . . . . . . . . . . . . . . . . . . . 2 . 1 . 1 Follow-up Attacks 5 | . . . . . . . . . . . . . . . . . . . . . . . . . . . . . 1 . . 4 . . Damage Inflicted 33241 | 183 1768 64 . 366 3521 2112 . 1558 . . . . 1489 . 2324 . 613 . 363 4693 . 1537 123 668 794 66 2521 . 1671 2971 382 2676 133 645 Guns 4235 | 183 1181 64 . 255 2526 . . . . . . . 26 . . . . . . . . . . . . . . . . . . . . . Cannons . | . . . . . . . . . . . . . . . . . . . . . . . . . . . . . . . . . . . Explosions 7720 | . 579 . . 111 995 484 . 321 . . . . . . . . 613 . 363 756 . . 123 668 . 66 544 . . 1715 382 . . . Melee 21278 | . . . . . . 1628 . 1237 . . . . 1463 . 2324 . . . . 3937 . 1537 . . 794 . 1977 . 1671 1256 . 2676 133 645 Ramming 8 | . 8 . . . . . . . . . . . . . . . . . . . . . . . . . . . . . . . . . Kinetic 2483 | 183 1181 22 . 81 990 . . . . . . . 26 . . . . . . . . . . . . . . . . . . . . . Thermal 1870 | . . 42 . 174 1536 118 . . . . . . . . . . . . . . . . . . . . . . . . . . . . Explosive 7602 | . 579 . . 111 995 366 . 321 . . . . . . . . 613 . 363 756 . . 123 668 . 66 544 . . 1715 382 . . . Electromagnetic . | . . . . . . . . . . . . . . . . . . . . . . . . . . . . . . . . . . . Impact 432 | . . . . . . 310 . 122 . . . . . . . . . . . . . . . . . . . . . . . . . . Slashing 20846 | . . . . . . 1318 . 1115 . . . . 1463 . 2324 . . . . 3937 . 1537 . . 794 . 1977 . 1671 1256 . 2676 133 645 Piercing . | . . . . . . . . . . . . . . . . . . . . . . . . . . . . . . . . . . . Highest Corruption 8 | . 4 4 4 4 1 . . . . . . . 5 . 4 . . . . . . . . . . . . 5 8 . . . 6 5 Average Corruption 2 | . 2 4 4 4 1 . . . . . . . 3 . 2 . . . . . . . . . . . . 5 2 . . . 5 4 Corruption Purged 26 | . . . . . . . . . . . . . 5 . 4 . . . . . . . . . . . . . 17 . . . . . Corruption Blocked . | . . . . . . . . . . . . . . . . . . . . . . . . . . . . . . . . . . . Effects 119 | . 12 5 11 22 13 . . . . . . . 33 . 4 . . . . . . . . . . . . . 14 . . . 3 2 Message Errors 26 | . 1 1 2 4 3 . . . . . . . 12 . 1 . . . . . . . . . . . . . 2 . . . . . Matter Fused 26 | . 4 2 1 2 2 . . . . . . . 10 . 1 . . . . . . . . . . . . . 3 . . . . 1 Heat Flow Errors 13 | . 1 . 3 4 1 . . . . . . . 2 . 1 . . . . . . . . . . . . . 1 . . . . . Energy Discharges 18 | . . . 3 7 . . . . . . . . 3 . . . . . . . . . . . . . . . 3 . . . 1 1 Parts Rejected 3 | . . . . . 3 . . . . . . . . . . . . . . . . . . . . . . . . . . . . . Parts Fused 1 | . . . . 1 . . . . . . . . . . . . . . . . . . . . . . . . . . . . . . Data Loss (minor) 24 | . 5 2 1 4 2 . . . . . . . 4 . 1 . . . . . . . . . . . . . 3 . . . 2 . Data Loss (major) 4 | . 1 . 1 . 1 . . . . . . . . . . . . . . . . . . . . . . . 1 . . . . . Misfires 2 | . . . . . . . . . . . . . 2 . . . . . . . . . . . . . . . . . . . . . Alerts 2 | . . . . . 1 . . . . . . . . . . . . . . . . . . . . . . . 1 . . . . . Overload Shots . | . . . . . . . . . . . . . . . . . . . . . . . . . . . . . . . . . . . Overflow Damage 5679 | . 92 . . . 108 569 . 234 . . . . 284 . 592 . 3 . . 1282 . 389 . 12 318 . 595 . 199 411 . 547 . 44 Projectiles . | . . . . . . . . . . . . . . . . . . . . . . . . . . . . . . . . . . . Explosions 377 | . 92 . . . 108 45 . . . . . . . . . . 3 . . 8 . . . 12 . . 64 . . 45 . . . . Melee 5302 | . . . . . . 524 . 234 . . . . 284 . 592 . . . . 1274 . 389 . . 318 . 531 . 199 366 . 547 . 44 Knockbacks 2 | . 1 . . . . 1 . . . . . . . . . . . . . . . . . . . . . . . . . . . . Impact 2 | . 1 . . . . 1 . . . . . . . . . . . . . . . . . . . . . . . . . . . . Kinetic . | . . . . . . . . . . . . . . . . . . . . . . . . . . . . . . . . . . . Secondary . | . . . . . . . . . . . . . . . . . . . . . . . . . . . . . . . . . . . Self-Inflicted Damage 119 | . 37 . . . . 7 . . . . . . . . . . 27 . . . . . . . . . . . . 48 . . . . Shots 5 | . 1 . . . . 1 . . . . . . . . . . 1 . . . . . . . . . . . . 2 . . . . Rammed 3 | . 3 . . . . . . . . . . . . . . . . . . . . . . . . . . . . . . . . . Targets Rammed 3 | . 3 . . . . . . . . . . . . . . . . . . . . . . . . . . . . . . . . . Kicked . | . . . . . . . . . . . . . . . . . . . . . . . . . . . . . . . . . . . Crushed . | . . . . . . . . . . . . . . . . . . . . . . . . . . . . . . . . . . . Highest Temperature 372 | 6 108 66 245 192 372 18 . . . . . . 241 163 88 . 67 . 168 130 108 234 185 138 30 91 155 . 202 96 207 . 72 94 Average Temperature 52 | 6 58 34 105 73 163 13 . . . . . . 67 111 33 . 30 . 51 46 57 36 54 42 13 53 45 . 30 14 113 . 35 40 Received Heat Transfer 1018 | . 48 . . . 711 9 . . . 9 . . . . 18 . . . 9 9 . . 9 9 . . 30 . 45 34 . 54 12 12 Effects 3 | . . . . . 2 . . . . . . . . . . . . . . . . . . . . . . . . . 1 . . . Shutdowns 1 | . . . . . 1 . . . . . . . . . . . . . . . . . . . . . . . . . . . . . Energy Bleed 1 | . . . . . . . . . . . . . . . . . . . . . . . . . . . . . . . 1 . . . Interference 1 | . . . . . 1 . . . . . . . . . . . . . . . . . . . . . . . . . . . . . Siege Activations . | . . . . . . . . . . . . . . . . . . . . . . . . . . . . . . . . . . . Robots Corrupted 2 | . . . . . . 2 . . . . . . . . . . . . . . . . . . . . . . . . . . . . Combat Hostiles . | . . . . . . . . . . . . . . . . . . . . . . . . . . . . . . . . . . . Parts Fried 10 | . . . . . . 9 . 1 . . . . . . . . . . . . . . . . . . . . . . . . . . Impact Corruptions 10 | . . . . . . 8 . 2 . . . . . . . . . . . . . . . . . . . . . . . . . . Robots Melted . | . . . . . . . . . . . . . . . . . . . . . . . . . . . . . . . . . . . Combat Hostiles . | . . . . . . . . . . . . . . . . . . . . . . . . . . . . . . . . . . . Parts Melted 3 | . . . . . 3 . . . . . . . . . . . . . . . . . . . . . . . . . . . . . Heat Transferred 3800 | . . 74 . 296 3330 100 . . . . . . . . . . . . . . . . . . . . . . . . . . . . Parts Sabotaged . | . . . . . . . . . . . . . . . . . . . . . . . . . . . . . . . . . . . Parts Stolen . | . . . . . . . . . . . . . . . . . . . . . . . . . . . . . . . . . . . Parts Stripped . | . . . . . . . . . . . . . . . . . . . . . . . . . . . . . . . . . . . Power Chain Reactions . | . . . . . . . . . . . . . . . . . . . . . . . . . . . . . . . . . . . Alert | -11 -10 -10 -10 -9 -8 -7 -7 -7 -7 -7 -7 -6 -6 -6 -6 -6 -6 -6 -5 -5 -5 -5 -5 -5 -5 -4 -4 -4 -4 -4 -4 -4 -4 -3 ------- Run | Yrd Mat Min Exi Min Mat Fac Was Fac Low Low Zio Pro Fac Was Fac Low Low Dat Pro Fac Was Fac Upp Upp Zhi Pro Fac Was Fac Ext Cet Arc Hub Res Peak Influence 417 | 15 385 45 . 216 315 417 160 303 . . . . 111 47 380 . . . . 363 79 256 . . . . 255 103 182 255 133 195 41 221 Initial 145 | . 9 . . . 17 114 145 112 . . . . . 17 32 . . . . 97 64 55 . . . . 2 58 72 63 76 53 . 21 Average 125 | 5 104 31 . 45 125 197 155 150 . . . . 50 29 167 . . . . 193 66 95 . . . . 135 73 82 136 101 167 25 79 Maximum Alert Level 2 | . 1 . . 1 1 2 . 1 . . . . . . 1 . . . . 1 . 1 . . . . 1 . . 1 . . . 1 Low Security (%) 81 | 100 75 100 . 94 77 64 100 84 . . . . 100 100 64 . . . . 59 100 94 . . . . 87 100 100 79 100 100 100 97 Level 1 18 | . 24 . . 5 22 29 . 15 . . . . . . 35 . . . . 40 . 5 . . . . 12 . . 20 . . . 2 Level 2 . | . . . . . . 6 . . . . . . . . . . . . . . . . . . . . . . . . . . . . Level 3 . | . . . . . . . . . . . . . . . . . . . . . . . . . . . . . . . . . . . Level 4 . | . . . . . . . . . . . . . . . . . . . . . . . . . . . . . . . . . . . Level 5 . | . . . . . . . . . . . . . . . . . . . . . . . . . . . . . . . . . . . High Security . | . . . . . . . . . . . . . . . . . . . . . . . . . . . . . . . . . . . Max Security . | . . . . . . . . . . . . . . . . . . . . . . . . . . . . . . . . . . . Squads Dispatched 90 | . 3 . . . 2 10 . 8 . . . . 11 . 12 . . . . 10 . 7 . . . . 11 . 12 . . . 3 1 Investigation 52 | . . . . . 1 8 . 4 . . . . 7 . 6 . . . . 6 . 5 . . . . 7 . 6 . . . 2 . Extermination 17 | . . . . . . 1 . 3 . . . . 1 . 3 . . . . 2 . 1 . . . . 3 . 2 . . . . 1 Reinforcement 19 | . 3 . . . 1 1 . . . . . . 3 . 2 . . . . 2 . 1 . . . . 1 . 4 . . . 1 . Assault . | . . . . . . . . . . . . . . . . . . . . . . . . . . . . . . . . . . . Garrison 2 | . . . . . . . . 1 . . . . . . 1 . . . . . . . . . . . . . . . . . . . Intercept . | . . . . . . . . . . . . . . . . . . . . . . . . . . . . . . . . . . . Searches Triggered . | . . . . . . . . . . . . . . . . . . . . . . . . . . . . . . . . . . . Construction Impeded . | . . . . . . . . . . . . . . . . . . . . . . . . . . . . . . . . . . . Haulers Reinforced 1 | . . . . . . . . . . . . . . . . . . . . 1 . . . . . . . . . . . . . . Active Scanning Responses . | . . . . . . . . . . . . . . . . . . . . . . . . . . . . . . . . . . . Cargo Convoy Interrupts 1 | . . . . . . . . . . . . . . . . . . . . 1 . . . . . . . . . . . . . . Stealth | -11 -10 -10 -10 -9 -8 -7 -7 -7 -7 -7 -7 -6 -6 -6 -6 -6 -6 -6 -5 -5 -5 -5 -5 -5 -5 -4 -4 -4 -4 -4 -4 -4 -4 -3 --------- Run | Yrd Mat Min Exi Min Mat Fac Was Fac Low Low Zio Pro Fac Was Fac Low Low Dat Pro Fac Was Fac Upp Upp Zhi Pro Fac Was Fac Ext Cet Arc Hub Res Distress Signals 24 | . 1 . . . 4 3 . 1 . . . . 3 . 3 . . . . 1 . 2 . . . . 2 . 3 . 1 . . . Communications Jammed . | . . . . . . . . . . . . . . . . . . . . . . . . . . . . . . . . . . . Distress Signals . | . . . . . . . . . . . . . . . . . . . . . . . . . . . . . . . . . . . Times Spotted 344 | . 27 2 . 7 40 24 5 24 1 3 . . 12 5 35 . 6 . 12 22 1 13 4 15 . . 16 5 23 15 5 7 3 12 Peak Tracking Total 11 | . 3 2 . 3 6 5 5 6 1 4 . . 5 5 8 . 2 . 7 6 1 6 5 11 . . 5 5 10 5 5 2 10 6 Tactical Retreats 60 | . 1 . . . 3 4 . 5 1 . . . 4 . 9 . . . 3 6 . 4 3 3 . . 5 . 4 3 . . . 2 Traps | -11 -10 -10 -10 -9 -8 -7 -7 -7 -7 -7 -7 -6 -6 -6 -6 -6 -6 -6 -5 -5 -5 -5 -5 -5 -5 -4 -4 -4 -4 -4 -4 -4 -4 -3 ------- Run | Yrd Mat Min Exi Min Mat Fac Was Fac Low Low Zio Pro Fac Was Fac Low Low Dat Pro Fac Was Fac Upp Upp Zhi Pro Fac Was Fac Ext Cet Arc Hub Res Traps Triggered 21 | . 4 . . . 1 2 . . . . . . 2 . . . . . . 1 . 3 . . . . 1 . 6 . . . 1 . Indirectly . | . . . . . . . . . . . . . . . . . . . . . . . . . . . . . . . . . . . Trap Hack Attempts 62 | . . . . . . 21 . . . . . . 13 . . . . . . 3 . . . . . . 8 . . 17 . . . . Triggered 1 | . . . . . . . . . . . . . . . . . . . . . . . . . . . . . . 1 . . . . Disarmed 1 | . . . . . . . . . . . . . . . . . . . . 1 . . . . . . . . . . . . . . Reprogrammed 21 | . . . . . . 6 . . . . . . 4 . . . . . . . . . . . . . 4 . . 7 . . . . Reused 5 | . . . . . . . . . . . . . 3 . . . . . . 2 . . . . . . . . . . . . . . Traps Extracted 17 | . . . . . . 6 . . . . . . 3 . . . . . . 4 . . . . . . 4 . . . . . . . Installed 9 | . . . . . . . . . . . . . 3 . . . . . . 6 . . . . . . . . . . . . . . Triggered 7 | . . . . . . . . . . . . . 4 . . . . . . 2 . . 1 . . . . . . . . . . . Most Traps Carried 8 | . . . . . . 6 6 6 6 6 6 6 6 6 6 6 6 6 6 6 4 4 4 4 4 4 8 8 8 8 8 8 8 8 Machines | -11 -10 -10 -10 -9 -8 -7 -7 -7 -7 -7 -7 -6 -6 -6 -6 -6 -6 -6 -5 -5 -5 -5 -5 -5 -5 -4 -4 -4 -4 -4 -4 -4 -4 -3 ---------- Run | Yrd Mat Min Exi Min Mat Fac Was Fac Low Low Zio Pro Fac Was Fac Low Low Dat Pro Fac Was Fac Upp Upp Zhi Pro Fac Was Fac Ext Cet Arc Hub Res Machines Disabled 15 | . 3 . . 1 3 5 . . . . . . . . . 1 . . . . . . . . . . . . . 2 . . . . Max in Single Turn 4 | . 2 . . 1 1 4 . . . . . . . . . 1 . . . . . . . . . . . . . 1 . . . . Garrison Access 26 | . . . . . . 3 . 1 . . . . 4 . 4 . . . . 3 . 3 . . . . 4 . 3 . . . 1 . Network Hub 1 | . . . . . . . . . . . . . . . . . . . . . . . . . . . . . . . . . 1 . Machines Repaired . | . . . . . . . . . . . . . . . . . . . . . . . . . . . . . . . . . . . Machines Dismantled . | . . . . . . . . . . . . . . . . . . . . . . . . . . . . . . . . . . . Machines Sabotaged . | . . . . . . . . . . . . . . . . . . . . . . . . . . . . . . . . . . . Overloaded Fab Kills . | . . . . . . . . . . . . . . . . . . . . . . . . . . . . . . . . . . . Hacking | -11 -10 -10 -10 -9 -8 -7 -7 -7 -7 -7 -7 -6 -6 -6 -6 -6 -6 -6 -5 -5 -5 -5 -5 -5 -5 -4 -4 -4 -4 -4 -4 -4 -4 -3 --------- Run | Yrd Mat Min Exi Min Mat Fac Was Fac Low Low Zio Pro Fac Was Fac Low Low Dat Pro Fac Was Fac Upp Upp Zhi Pro Fac Was Fac Ext Cet Arc Hub Res Machines Accessed 250 | . 5 . 2 . 8 28 . 23 1 1 . . 26 . 29 . . 4 . 30 . 26 . . 6 . 25 . 19 5 1 1 6 4 Terminals 127 | . 5 . . . 8 14 . 14 . . . . 11 . 12 . . . . 14 . 14 . . . . 13 . 9 5 1 . 5 2 Fabricators 37 | . . . . . . 6 . 3 . . . . 5 . 6 . . . . 5 . 5 . . . . 4 . 3 . . . . . Repair Stations 20 | . . . . . . . . 3 . . . . 2 . 3 . . . . 5 . 2 . . . . 1 . 3 . . . . 1 Recycling Units 18 | . . . . . . 3 . 1 . . . . 3 . 4 . . . . 2 . 2 . . . . 2 . . . . . . 1 Scanalyzers 7 | . . . . . . 2 . 1 . . . . 1 . . . . . . 1 . . . . . . 1 . 1 . . . . . Garrison Access 26 | . . . . . . 3 . 1 . . . . 4 . 4 . . . . 3 . 3 . . . . 4 . 3 . . . 1 . Total Hacks 781 | . 20 . 2 . 26 87 . 72 1 1 . . 77 . 80 . . 21 . 93 . 86 . . 19 . 85 . 52 13 1 1 22 22 Successful 619 | . 9 . 2 . 9 65 . 66 1 1 . . 65 . 69 . . 21 . 73 . 69 . . 19 . 64 . 44 10 1 1 17 13 Failed 161 | . 11 . . . 17 22 . 6 . . . . 12 . 11 . . . . 20 . 17 . . . . 20 . 8 3 . . 5 9 Catastrophic 18 | . 1 . . . 4 1 . . . . . . 3 . 1 . . . . 4 . 1 . . . . 1 . 1 . . . . 1 Database Lockouts 1 | . . . . . . . . . . . . . . . . . . . . . . . . . . . 1 . . . . . . . Manual 445 | . 19 . 1 . 18 54 . 39 . . . . 46 . 40 . . . . 52 . 55 . . . . 50 . 30 9 . . 17 15 Terminals 448 | . 20 . . . 26 48 . 40 . . . . 39 . 36 . . . . 55 . 52 . . . . 54 . 25 13 1 . 20 19 Fabricators 147 | . . . . . . 22 . 11 . . . . 19 . 26 . . . . 15 . 22 . . . . 17 . 15 . . . . . Repair Stations 56 | . . . . . . . . 14 . . . . 7 . 9 . . . . 12 . 4 . . . . 2 . 6 . . . . 2 Recycling Units 26 | . . . . . . 4 . 2 . . . . 4 . 5 . . . . 3 . 4 . . . . 3 . . . . . . 1 Scanalyzers 25 | . . . . . . 9 . 4 . . . . 4 . . . . . . 3 . . . . . . 2 . 3 . . . . . Garrison Access 34 | . . . . . . 4 . 1 . . . . 4 . 4 . . . . 5 . 4 . . . . 7 . 3 . . . 2 . Terminal Hacks 227 | . 7 . 2 . 7 17 . 20 1 1 . . 16 . 13 . . 21 . 22 . 27 . . 19 . 21 . 9 9 1 1 6 7 Record 13 | . . . 1 . . . . . 1 . . . . . . . . 3 . . . . . . 7 . . . . . . 1 . . Part Schematic 50 | . 2 . . . . 7 . 1 . . . . 6 . 2 . . 10 . 2 . 8 . . 4 . 2 . 4 1 . . . 1 Robot Schematic 5 | . . . . . . . . . . . . . . . . . . 5 . . . . . . . . . . . . . . . . Robot Analysis 18 | . 3 . . . . 1 . 4 . . . . . . . . . . . 3 . 2 . . 4 . 1 . . . . . . . Prototype ID Bank 10 | . . . . . . . . 1 . . . . . . . . . 3 . . . . . . 4 . 2 . . . . . . . Open Door 2 | . . . . . . . . . . 1 . . . . . . . . . . . . . . . . . . . . 1 . . . Level Access Points 7 | . . . . . . 1 . . . . . . 1 . 1 . . . . 1 . 1 . . . . 1 . . . . . 1 . Branch Access Points 8 | . . . . . 1 1 . 1 . . . . 1 . 1 . . . . 1 . . . . . . 1 . 1 . . . . . Machine Index 9 | . . . . . . . . 1 . . . . 1 . 1 . . . . 1 . 1 . . . . 1 . 1 . . . 1 1 Terminal Index 5 | . 1 . . . 1 1 . 1 . . . . . . . . . . . 1 . . . . . . . . . . . . . . Alert Level 6 | . . . . . 2 . . . . . . . . . . . . . . 1 . 1 . . . . . . . 1 . . . 1 Unreport Threat 12 | . 1 . . . 1 . . 1 . . . . . . . . . . . 2 . 1 . . . . 1 . . 5 . . . . Locate Traps 14 | . . . . . 1 . . 2 . . . . . . . . . . . . . 4 . . . . 3 . 1 1 . . 2 . Reprogram Traps 1 | . . . . . . . . . . . . . . . . . . . . . . . . . . . . . . 1 . . . . Maintenance Status 7 | . . . . . . . . . . . . . 1 . 1 . . . . 1 . 1 . . . . 1 . . . . . 1 1 Security Status 1 | . . . . . . . . . . . . . 1 . . . . . . . . . . . . . . . . . . . . . Surveillance Status 1 | . . . . . . . . . . . . . . . . . . . . . . . . . . . 1 . . . . . . . Patrol Status 4 | . . . . . . . . . . . . . . . 1 . . . . 1 . 1 . . . . . . . . . . . 1 Investigation Status 2 | . . . . . . . . . . . . . . . 1 . . . . . . . . . . . 1 . . . . . . . Recall Investigation 15 | . . . . . . 2 . 2 . . . . 1 . 2 . . . . 3 . 3 . . . . 2 . . . . . . . Recall Extermination 14 | . . . . . . 1 . 2 . . . . 1 . 2 . . . . 3 . 1 . . . . 3 . 1 . . . . . Recall Reinforcements 5 | . . . . . . 1 . . . . . . 1 . . . . . . 1 . 1 . . . . . . 1 . . . . . Hauler Manifests 7 | . . . . . 1 2 . 3 . . . . 1 . . . . . . . . . . . . . . . . . . . . . Registered Prototypes 5 | . . . . . . . . 1 . . . . 1 . 1 . . . . . . 1 . . . . . . . . . . . 1 Zone Layout 5 | . . . . . . . . . . . . . . . . . . . . 1 . 1 . . . . 1 . . . . . 1 1 Derelict Proto ID Bank 1 | . . . 1 . . . . . . . . . . . . . . . . . . . . . . . . . . . . . . . Fabricator Hacks 93 | . . . . . . 15 . 8 . . . . 12 . 16 . . . . 10 . 12 . . . . 11 . 9 . . . . . Network Status 5 | . . . . . . 1 . 1 . . . . . . . . . . . 1 . 1 . . . . 1 . . . . . . . Load Schematic 58 | . . . . . . 9 . 3 . . . . 8 . 11 . . . . 6 . 8 . . . . 7 . 6 . . . . . Build 30 | . . . . . . 5 . 4 . . . . 4 . 5 . . . . 3 . 3 . . . . 3 . 3 . . . . . Repair Station Hacks 55 | . . . . . . . . 14 . . . . 6 . 9 . . . . 12 . 4 . . . . 2 . 6 . . . . 2 Scan Component 25 | . . . . . . . . 7 . . . . 2 . 3 . . . . 6 . 2 . . . . 1 . 3 . . . . 1 Repair 25 | . . . . . . . . 7 . . . . 2 . 3 . . . . 6 . 2 . . . . 1 . 3 . . . . 1 Refit 5 | . . . . . . . . . . . . . 2 . 3 . . . . . . . . . . . . . . . . . . . Recycling Unit Hacks 2 | . . . . . . . . . . . . . . . 2 . . . . . . . . . . . . . . . . . . . Report Inventory 1 | . . . . . . . . . . . . . . . 1 . . . . . . . . . . . . . . . . . . . Retrieve Components 1 | . . . . . . . . . . . . . . . 1 . . . . . . . . . . . . . . . . . . . Scanalyzer 25 | . . . . . . 9 . 4 . . . . 4 . . . . . . 3 . . . . . . 2 . 3 . . . . . Insert Component 11 | . . . . . . 3 . 2 . . . . 2 . . . . . . 1 . . . . . . 1 . 2 . . . . . Analyze 14 | . . . . . . 6 . 2 . . . . 2 . . . . . . 2 . . . . . . 1 . 1 . . . . . Garrison Access Hacks 26 | . . . . . . 3 . 1 . . . . 4 . 4 . . . . 3 . 3 . . . . 4 . 3 . . . 1 . Seal Access 26 | . . . . . . 3 . 1 . . . . 4 . 4 . . . . 3 . 3 . . . . 4 . 3 . . . 1 . Unauthorized Hacks 191 | . 2 . . . 2 21 . 19 . . . . 23 . 25 . . . . 23 . 23 . . . . 24 . 14 1 . . 10 4 Terminals 117 | . 2 . . . 2 11 . 14 . . . . 11 . 13 . . . . 15 . 11 . . . . 15 . 9 1 . . 10 3 Assimilate 28 | . . . . . . 3 . 6 . . . . 1 . 4 . . . . 3 . 3 . . . . 6 . 1 1 . . . . Botnet 28 | . 2 . . . 2 3 . 2 . . . . 3 . 2 . . . . 3 . 3 . . . . 2 . 2 . . . 3 1 Operators 10 | . . . . . . 1 . 1 . . . . 1 . 1 . . . . 2 . . . . . . 1 . 1 . . . 1 1 Skim 49 | . . . . . . 4 . 5 . . . . 6 . 6 . . . . 7 . 5 . . . . 6 . 5 . . . 4 1 Sabotage 2 | . . . . . . . . . . . . . . . . . . . . . . . . . . . . . . . . . 2 . Fabricators 49 | . . . . . . 6 . 3 . . . . 7 . 9 . . . . 5 . 8 . . . . 6 . 5 . . . . . Prioritize 19 | . . . . . . 3 . 2 . . . . 2 . 3 . . . . 2 . 3 . . . . 2 . 2 . . . . . Haulers 2 | . . . . . . . . 1 . . . . 1 . . . . . . . . . . . . . . . . . . . . . Recompile 28 | . . . . . . 3 . . . . . . 4 . 6 . . . . 3 . 5 . . . . 4 . 3 . . . . . Repair Stations 1 | . . . . . . . . . . . . . 1 . . . . . . . . . . . . . . . . . . . . . Mechanics 1 | . . . . . . . . . . . . . 1 . . . . . . . . . . . . . . . . . . . . . Recycling Units 24 | . . . . . . 4 . 2 . . . . 4 . 3 . . . . 3 . 4 . . . . 3 . . . . . . 1 Reject 1 | . . . . . . . . . . . . . . . . . . . . . . 1 . . . . . . . . . . . . Recyclers 8 | . . . . . . 1 . 1 . . . . 1 . 1 . . . . 1 . 1 . . . . 1 . . . . . . 1 Mask 15 | . . . . . . 3 . 1 . . . . 3 . 2 . . . . 2 . 2 . . . . 2 . . . . . . . Scanalyzers . | . . . . . . . . . . . . . . . . . . . . . . . . . . . . . . . . . . . Garrison Access . | . . . . . . . . . . . . . . . . . . . . . . . . . . . . . . . . . . . Data Cores Recovered 1 | . . . . . . . . . . . . . . . . . . . . . . . . . . . 1 . . . . . . . Used . | . . . . . . . . . . . . . . . . . . . . . . . . . . . . . . . . . . . Hacking Detections 143 | . 5 . . . 8 19 . 16 . . . . 13 . 14 . . . . 15 . 15 . . . . 15 . 12 4 . . 5 2 Full Trace Events 22 | . 1 . . . 1 5 . 4 . . . . 3 . . . . . . 3 . . . . . . 3 . 2 . . . . . Feedback Events 2 | . . . . . . . . . . . . . 1 . . . . . . . . . . . . . 1 . . . . . . . Corruption 1 | . . . . . . . . . . . . . 1 . . . . . . . . . . . . . . . . . . . . . Hackware Fried 1 | . . . . . . . . . . . . . . . . . . . . . . . . . . . 1 . . . . . . . Feedback Blocked 1 | . . . . . . . . . . . . . . . . . . . . . . . . . . . 1 . . . . . . . Robot Schematics Acquired 9 | . . . . . . . . . . . 4 . . . . . . 5 . . . . . . . . . . . . . . . . Robots Built . | . . . . . . . . . . . . . . . . . . . . . . . . . . . . . . . . . . . Authchips . | . . . . . . . . . . . . . . . . . . . . . . . . . . . . . . . . . . . Time . | . . . . . . . . . . . . . . . . . . . . . . . . . . . . . . . . . . . Total Robot Build Rating . | . . . . . . . . . . . . . . . . . . . . . . . . . . . . . . . . . . . Part Schematics Acquired 75 | . 2 . . . . 10 . 3 . . 15 . 8 . 2 . . 10 . 3 . 8 . . 4 . 3 . 5 1 . . . 1 Parts Built 34 | . . . . . . 6 . 5 . . . . 5 . 5 . . . . 3 . 3 . . . . 3 . 4 . . . . . Authchips 22 | . . . . . . 3 . . . . . . 3 . 5 . . . . 2 . 3 . . . . 3 . 3 . . . . . Time 1979 | . . . . . . 183 . 167 . . . . 197 . 347 . . . . 215 . 342 . . . . 373 . 155 . . . . . Total Part Build Rating 201 | . . . . . . 30 . 30 . . . . 28 . 30 . . . . 13 . 21 . . . . 21 . 28 . . . . . Parts Repaired 25 | . . . . . . . . 7 . . . . 2 . 3 . . . . 6 . 2 . . . . 1 . 3 . . . . 1 Time 1167 | . . . . . . . . 322 . . . . 115 . 76 . . . . 375 . 94 . . . . 44 . 112 . . . . 29 Parts Recycled . | . . . . . . . . . . . . . . . . . . . . . . . . . . . . . . . . . . . Recycled Matter . | . . . . . . . . . . . . . . . . . . . . . . . . . . . . . . . . . . . Retrieved Matter . | . . . . . . . . . . . . . . . . . . . . . . . . . . . . . . . . . . . Retrieved Components 10 | . . . . . . . . . . . . . . . 10 . . . . . . . . . . . . . . . . . . . Parts Scanalyzed 10 | . . . . . . 3 . 2 . . . . 2 . . . . . . 1 . . . . . . 1 . 1 . . . . . Part Schematics Acquired 10 | . . . . . . 3 . 2 . . . . 2 . . . . . . 1 . . . . . . 1 . 1 . . . . . Parts Damaged 2 | . . . . . . . . . . . . . . . . . . . . . . . . . . . 1 . 1 . . . . . Bothacking | -11 -10 -10 -10 -9 -8 -7 -7 -7 -7 -7 -7 -6 -6 -6 -6 -6 -6 -6 -5 -5 -5 -5 -5 -5 -5 -4 -4 -4 -4 -4 -4 -4 -4 -3 ------------ Run | Yrd Mat Min Exi Min Mat Fac Was Fac Low Low Zio Pro Fac Was Fac Low Low Dat Pro Fac Was Fac Upp Upp Zhi Pro Fac Was Fac Ext Cet Arc Hub Res Used RIF Installer . | . . . . . . . . . . . . . . . . . . . . . . . . . . . . . . . . . . . Robots Hacked 10 | . . . 4 . . . . . . . . . . . . . 1 1 . . . . . . 3 . 1 . . . . . . . Non-combat 4 | . . . 3 . . . . . . . . . . . . . . . . . . . . . . . 1 . . . . . . . Combat 6 | . . . 1 . . . . . . . . . . . . . 1 1 . . . . . . 3 . . . . . . . . . Robot Hacks Applied 10 | . . . 4 . . . . . . . . . . . . . 1 1 . . . . . . 3 . 1 . . . . . . . parse_system 9 | . . . 4 . . . . . . . . . . . . . 1 1 . . . . . . 3 . . . . . . . . . find_chute 1 | . . . . . . . . . . . . . . . . . . . . . . . . . . . 1 . . . . . . . Relay Couplers Released . | . . . . . . . . . . . . . . . . . . . . . . . . . . . . . . . . . . . Fabnet Peak Effective % . | . . . . . . . . . . . . . . . . . . . . . . . . . . . . . . . . . . . Robots Rewired 4 | . . . . . . . . . . . . . . . . . . . . . . . . . . . . . . 4 . . . . Allies Hacked . | . . . . . . . . . . . . . . . . . . . . . . . . . . . . . . . . . . . Hacks Repelled . | . . . . . . . . . . . . . . . . . . . . . . . . . . . . . . . . . . . Allies | -11 -10 -10 -10 -9 -8 -7 -7 -7 -7 -7 -7 -6 -6 -6 -6 -6 -6 -6 -5 -5 -5 -5 -5 -5 -5 -4 -4 -4 -4 -4 -4 -4 -4 -3 -------- Run | Yrd Mat Min Exi Min Mat Fac Was Fac Low Low Zio Pro Fac Was Fac Low Low Dat Pro Fac Was Fac Upp Upp Zhi Pro Fac Was Fac Ext Cet Arc Hub Res Total Allies 49 | . . . . 2 . 3 . 5 . . 3 . 1 . 4 . . . . 3 . 3 . . . . 4 . 1 20 . . . . Largest Group 10 | . . . . 2 . 2 . 2 . . 3 3 1 . 2 . . . . 2 . 1 . . . . 3 . 1 10 4 . . . Highest-Rated Group 542 | . . . . 43 . 52 . 36 . . 59 59 26 . 52 . . . . 26 . 26 . . . . 81 . 45 542 140 . . . Highest-Rated Ally 159 | . . . . 31 . 26 . 26 . . 25 25 26 . 26 . . . . 26 . 26 . . . . 45 . 45 159 51 . . . Total Orders 1 | . . . . . . . . 1 . . . . . . . . . . . . . . . . . . . . . . . . . . STAY 1 | . . . . . . . . 1 . . . . . . . . . . . . . . . . . . . . . . . . . . Ally Attacks 91 | . . . . 3 . . . . . . . 5 . . . . . . . . . . . . . . . . . 71 12 . . . Total Damage 2535 | . . . . 42 . . . . . . . 136 . . . . . . . . . . . . . . . . . 2085 272 . . . Kills 13 | . . . . . . . . . . . . 1 . . . . . . . . . . . . . . . . . 9 3 . . . Allies Corrupted . | . . . . . . . . . . . . . . . . . . . . . . . . . . . . . . . . . . . Allies Melted 2 | . . . . . . . . . . . . . . . . . . . . . . . . . . . . . . 2 . . . . Intel | -11 -10 -10 -10 -9 -8 -7 -7 -7 -7 -7 -7 -6 -6 -6 -6 -6 -6 -6 -5 -5 -5 -5 -5 -5 -5 -4 -4 -4 -4 -4 -4 -4 -4 -3 ------- Run | Yrd Mat Min Exi Min Mat Fac Was Fac Low Low Zio Pro Fac Was Fac Low Low Dat Pro Fac Was Fac Upp Upp Zhi Pro Fac Was Fac Ext Cet Arc Hub Res Robot Analysis Total 18 | . 3 . . . . 1 . 4 . . . . . . . . . . . 3 . 2 . . 4 . 1 . . . . . . . Derelict Logs Recovered 18 | . . 1 . 1 . . . . 1 1 2 2 . . . 3 1 . 2 . . . . 2 . 2 . . . . . . . . Drone Launches . | . . . . . . . . . . . . . . . . . . . . . . . . . . . . . . . . . . . Drone Recoveries . | . . . . . . . . . . . . . . . . . . . . . . . . . . . . . . . . . . . Exploration | -11 -10 -10 -10 -9 -8 -7 -7 -7 -7 -7 -7 -6 -6 -6 -6 -6 -6 -6 -5 -5 -5 -5 -5 -5 -5 -4 -4 -4 -4 -4 -4 -4 -4 -3 ------------- Run | Yrd Mat Min Exi Min Mat Fac Was Fac Low Low Zio Pro Fac Was Fac Low Low Dat Pro Fac Was Fac Upp Upp Zhi Pro Fac Was Fac Ext Cet Arc Hub Res Turns Passed 23880 | 69 1657 333 554 1191 2192 1561 26 1570 115 165 354 845 1903 14 2398 182 268 25 166 2347 12 1373 288 186 147 63 1163 16 1445 382 34 402 49 385 Spaces Moved 39161 | 27 708 176 313 609 699 3403 90 3475 373 526 809 751 4383 67 4158 682 724 90 502 4431 76 3075 605 620 265 241 2713 82 2915 526 88 243 119 597 Core 36 | . . . . . . . . . . . . . . . . . . . . . . . . . . . . . . . . . . 36 Treads 410 | . 373 . . . 37 . . . . . . . . . . . . . . . . . . . . . . . . . . . . . Legs 79 | 27 52 . . . . . . . . . . . . . . . . . . . . . . . . . . . . . . . . . Wheels 2043 | . 283 176 313 609 662 . . . . . . . . . . . . . . . . . . . . . . . . . . . . . Hover . | . . . . . . . . . . . . . . . . . . . . . . . . . . . . . . . . . . . Flight 36593 | . . . . . . 3403 90 3475 373 526 809 751 4383 67 4158 682 724 90 502 4431 76 3075 605 620 265 241 2713 82 2915 526 88 243 119 561 Fastest Speed 8 | 120 120 175 175 175 175 20 29 29 29 29 29 29 26 14 26 26 26 26 14 15 15 15 8 15 12 8 12 17 8 8 8 17 8 17 Average Speed 33 | 120 184 175 175 175 193 28 29 29 29 29 29 29 26 20 26 26 26 26 25 22 15 15 15 15 14 13 16 17 16 17 13 17 16 25 Slowest Speed 240 | 120 240 175 175 175 240 29 29 29 29 29 29 29 29 26 26 26 26 26 26 97 15 15 72 15 15 15 17 17 17 78 17 17 17 150 Overloaded Moves 153 | . . . . . . 6 . . . . . . . 29 . . . . 22 . . . 20 . . 6 . . 19 14 30 . 7 . Propulsion Burnouts . | . . . . . . . . . . . . . . . . . . . . . . . . . . . . . . . . . . . Robots Hopped 97 | . . . . . . 15 . 34 . . . . 14 2 14 . 1 . . 6 . 2 . . . . 3 2 4 . . . . . Cave-ins Triggered 1 | . . . . . . . . . . . . . . . . . . . . . . 1 . . . . . . . . . . . . Teleports 1 | . . . . . . . . . . . . . . . . . . . . . . . . . . . . . . . . . . 1 Exploration Rate (%) 63 | 4 95 47 70 86 75 79 69 67 42 69 80 80 67 71 59 61 76 75 64 73 75 64 67 74 60 41 57 70 54 63 56 90 17 21 Regions Visited 34 Branch Regions 19 Pre-discovered Areas 17 | . . . 1 . . . . 4 . . . . 1 . 3 . . 1 1 1 . . . 1 3 1 . . . . . . . . Known Exits Taken 15 | . . . . . 1 . . 1 1 1 . 1 . . 1 1 . . 1 . . 1 1 1 . 1 . . 1 . . 1 1 . Unknown Exits Taken 11 | 1 1 1 1 1 . . . . . . 1 . . . . . 1 1 . . . . . . 1 . . . . 1 1 . . . Scrap Searched 23 | . . . . 1 . . . . 2 2 1 3 . . . 2 1 . 2 . . . 3 3 . 3 . . . . . . . . Spaces Dug 692 | . . . . 10 . 80 . 48 2 2 . 1 111 . 87 . 1 . 1 94 . 79 18 10 . 1 55 . 61 5 1 1 8 16 Terrain Destroyed 1332 | . 16 . . 35 56 91 . 65 2 2 . 1 111 . 87 . 114 . 68 137 . 80 44 36 . 10 84 . 62 170 36 1 8 16 Melee 493 | . . . . . . 62 . 48 2 2 . 1 68 . 71 . 1 . 1 64 . 50 2 7 . 1 45 . 46 5 1 1 5 10 Projectile 152 | . . . . 2 5 . . . . . . . 11 . 16 . . . . 31 . 30 18 3 . . 11 . 16 . . . 3 6 AOE 687 | . 16 . . 33 51 29 . 17 . . . . 32 . . . 113 . 67 42 . . 24 26 . 9 28 . . 165 35 . . . Terrain Rammed . | . . . . . . . . . . . . . . . . . . . . . . . . . . . . . . . . . . . Walls Destroyed . | . . . . . . . . . . . . . . . . . . . . . . . . . . . . . . . . . . . Machines Disabled . | . . . . . . . . . . . . . . . . . . . . . . . . . . . . . . . . . . . Actions | -11 -10 -10 -10 -9 -8 -7 -7 -7 -7 -7 -7 -6 -6 -6 -6 -6 -6 -6 -5 -5 -5 -5 -5 -5 -5 -4 -4 -4 -4 -4 -4 -4 -4 -3 --------- Run | Yrd Mat Min Exi Min Mat Fac Was Fac Low Low Zio Pro Fac Was Fac Low Low Dat Pro Fac Was Fac Upp Upp Zhi Pro Fac Was Fac Ext Cet Arc Hub Res Total 47875 | 41 902 197 318 716 1343 3817 89 3889 376 534 926 1375 4944 64 5259 683 784 90 529 5561 75 3823 772 694 360 267 3290 81 3734 763 102 553 134 790 Wait 6536 | . 79 2 . 78 401 208 . 302 2 7 113 624 348 . 917 . 46 . 17 850 . 581 135 53 65 25 431 . 685 145 9 275 1 137 Move 38957 | 26 707 175 312 608 698 3373 89 3422 372 525 808 750 4356 63 4131 681 721 89 501 4419 75 3069 604 619 264 240 2707 78 2906 525 87 242 118 597 Hop 76 | . . . . . . 15 . 18 . . . . 13 1 12 . 1 . . 6 . 2 . . . . 3 1 4 . . . . . Pick Up 184 | 2 16 6 1 3 22 21 . 13 . . . . 15 . 11 . . . 1 18 . 16 1 2 4 . 11 1 13 . . 1 1 5 Fast Attach 122 | 1 2 2 . 3 14 11 . 13 . . 2 . 13 . 9 . . . . 25 . 4 2 2 4 . 4 . 5 . . 2 . 4 Attach 92 | . . 1 . 2 24 8 . 7 . . . . 7 . 6 . 1 . 1 3 . 9 . . 2 . 9 . 8 . . 1 . 3 Detach 61 | . 1 3 . 1 6 6 . 7 . . 1 . 7 . 6 . . . . 4 . 5 1 . 1 . 5 . 7 . . . . . Swap 235 | . 10 1 . 5 24 17 . 6 . . . . 33 . 20 1 1 . 2 35 . 13 4 2 3 . 19 . 12 12 2 1 4 8 Drop 207 | 1 6 4 1 5 44 26 . 21 . . 1 . 18 . 11 . . . . 31 . 7 2 3 6 . 4 1 7 . . . 1 7 Fire 422 | 11 78 3 . 11 110 3 . 4 . . . . 16 . 16 . 12 . 6 36 . 30 20 6 . 1 14 . 16 17 3 . 3 6 Melee 874 | . . . 4 . . 93 . 76 2 2 1 1 102 . 120 1 2 1 1 125 . 86 3 7 11 1 75 . 71 28 1 31 6 23 Ram . | . . . . . . . . . . . . . . . . . . . . . . . . . . . . . . . . . . . Kick . | . . . . . . . . . . . . . . . . . . . . . . . . . . . . . . . . . . . Crush 3 | . 3 . . . . . . . . . . . . . . . . . . . . . . . . . . . . . . . . . Escape Stasis 35 | . . . . . . 15 . . . . . . . . . . . . . . . 1 . . . . . . . 19 . . . . Rewire . | . . . . . . . . . . . . . . . . . . . . . . . . . . . . . . . . . . . Trap 71 | . . . . . . 21 . . . . . . 16 . . . . . . 9 . . . . . . 8 . . 17 . . . . Miscellaneous . | . . . . . . . . . . . . . . . . . . . . . . . . . . . . . . . . . . . Route ------- -11/Scrapyard -10/Materials (discovered 4 exits: [*Mat x2] / [*Min x2]) -10/Mines (discovered 2 exits: [*Mat] / *Exi) -10/Exiles -9/Mines -8/Materials (discovered 3 exits: *Fac x3) -7/Factory (discovered 8 exits: *Fac x4 / *Sto x2 / *Low x2) -7/Waste -7/Factory (discovered 5 exits: *Fac x2 / *Sto / *Low x2) -7/Lower Caves -7/Lower Caves (discovered 2 exits: Fac / *Zio) -7/Zion -6/Proximity Caves -6/Factory (discovered 6 exits: *Fac x4 / *Low x2) -6/Waste -6/Factory (discovered 6 exits: *Fac x4 / *Low x2) -6/Lower Caves -6/Lower Caves (discovered 2 exits: *Fac / *Dat) -6/Data Miner -5/Proximity Caves -5/Factory (discovered 6 exits: *Fac x4 / Upp x2) -5/Waste -5/Factory (discovered 6 exits: *Fac x4 / *Upp x2) -5/Upper Caves -5/Upper Caves -5/Zhirov -4/Proximity Caves -4/Factory (discovered 8 exits: *Res x4 / *Upp x2 / Ext x2) -4/Waste -4/Factory (discovered 7 exits: *Res x3 / *Upp x2 / *Ext x2) -4/Extension (discovered 2 exits: *Res / *Cet) -4/Cetus (discovered 2 exits: Res / *Arc) -4/Archives (discovered 3 exits: *Res / *Hub x2) -4/Hub_04(d) (discovered 4 exits: *Res x4) -3/Research (discovered 3 exits: Res / *Arm / Qua) History --------- Turn | Location | Event 1 | -11/Scrapyard | Discovered new exit (range 2) 70 | -11/Scrapyard | Entered Materials 86 | -10/Materials | Discovered new exit (range 6) 310 | -10/Materials | Discovered new exit (range 12) 312 | -10/Materials | Build established: Mutant 1377 | -10/Materials | Discovered new exit (range 11) 1650 | -10/Materials | Discovered new exit (range 5) 1727 | -10/Materials | Entered Mines 1733 | -10/Mines | Met a Derelict bent on vengeance 1773 | -10/Mines | Discovered new exit (range 9) 1794 | -10/Mines | Learned 2 Materials zone layouts 1826 | -10/Mines | Joined a pair of Derelicts in attacking an 0b10 outpost 1944 | -10/Mines | A weapon hastily lodged in a ceiling crevice suddenly fell to the ground 2050 | -10/Mines | Deemed a non-threat by the Exiles lab entrance 2050 | -10/Mines | Discovered new exit (range 5) 2060 | -10/Mines | Entered Exiles 2102 | -10/Exiles | Met 8R-AWN 2134 | -10/Exiles | Met EX-HEX 2216 | -10/Exiles | Met EX-DEC 2263 | -10/Exiles | Learned location of Zion (-7) 2292 | -10/Exiles | Met EX-BIN 2394 | -10/Exiles | Aligned with FarCom system 2395 | -10/Exiles | Given EX-Vault access code 2436 | -10/Exiles | Opened EX-Vault 2448 | -10/Exiles | Found Modified TNC 2488 | -10/Exiles | Warned to stay clear of 0b10 Research branches 2508 | -10/Exiles | Exiles lab attacked by MAIN.C 2596 | -10/Exiles | Discovered new exit (range 11) 2614 | -10/Exiles | Left Exiles lab with Modified TNC 2614 | -10/Exiles | Entered Mines 2712 | -9/Mines | Received a Rocket Launcher from a helpful Derelict 2747 | -9/Mines | Assembled infested the area 3028 | -9/Mines | Found a hidden stash of uninstalled traps 3162 | -9/Mines | Found a damaged Exp. Sensor Array with a note attached 3166 | -9/Mines | Found Prototype Device 3166 | -9/Mines | Identified Exp. Sensor Array 3466 | -9/Mines | Build established: Skirmisher 3794 | -9/Mines | Discovered new exit (range 5) 3805 | -9/Mines | Entered Materials 3805 | -8/Materials | Evolved 4 slots: Propulsion x1, Utility x3 3806 | -8/Materials | Identified exit to Factory 4050 | -8/Materials | Lost 3 parts (2n1u) 4118 | -8/Materials | Build established: Scavenger-Skirmisher 4700 | -8/Materials | Build established: Scavenger-Mutant 5373 | -8/Materials | Core integrity fell below 50% 5439 | -8/Materials | Destroyed 7 combat bots 5891 | -8/Materials | Discovered exit to Factory (range 16) 5997 | -8/Materials | Entered Factory 5997 | -7/Factory | Evolved 2 slots: Utility x2 6057 | -7/Factory | Discovered new exit (range 13) 6513 | -7/Factory | Identified exit to Storage 6513 | -7/Factory | Identified exit to Lower Caves 6530 | -7/Factory | Build established: Hacker-Scout 6552 | -7/Factory | Discovered new exit (range 8) 6668 | -7/Factory | Identified exit to Factory 6709 | -7/Factory | Fabricated Imp. System Shield (x1) 6879 | -7/Factory | Fabricated Imp. Trap Extractor? 6882 | -7/Factory | Fabricated Imp. Hacking Suite? 7082 | -7/Factory | Noticed a derelict Sapper rigging charges 7122 | -7/Factory | Fabricated Adv. Hacking Suite? 7189 | -7/Factory | Fabricated Adv. Hacking Suite? 7420 | -7/Factory | Build established: Wizard-Sprinter 7558 | -7/Factory | Manually triggered Chute Trap 7558 | -7/Factory | Sucked down chute 7558 | -7/Factory | Entered Waste 7562 | -7/Waste | Spotted C-40 Crusher 7563 | -7/Waste | Spotted C-40 Crusher 7565 | -7/Waste | Spotted C-40 Crusher 7565 | -7/Waste | Spotted C-40 Crusher 7573 | -7/Waste | Spotted C-40 Crusher 7573 | -7/Waste | Spotted C-40 Crusher 7580 | -7/Waste | Discovered new exit (range 14) 7584 | -7/Waste | Entered Factory 7694 | -7/Factory | Fabricated Adv. Hacking Suite? 7848 | -7/Factory | Repaired Cld. VTOL Module? 7999 | -7/Factory | Repaired Cld. VTOL Module? 8083 | -7/Factory | Fabricated Adv. System Shield? 8130 | -7/Factory | Repaired Assault Rifle 8304 | -7/Factory | Fabricated Adv. System Restoration Module (x2) 8330 | -7/Factory | Fabricated Adv. Hacking Suite? 8359 | -7/Factory | Discovered exit to Factory (range 6) 8383 | -7/Factory | Discovered exit to Factory (range 4) 8459 | -7/Factory | Garrison activated, responded to threat 8462 | -7/Factory | Learned location of 2 exits from Proximity Caves 8649 | -7/Factory | Learned location of 2 exits from Lower Caves 8729 | -7/Factory | Learned location of 1 exit from Lower Caves 8823 | -7/Factory | Repaired Assault Rifle 8837 | -7/Factory | Learned location of Extension (-4) 8862 | -7/Factory | Repaired Scythe 8862 | -7/Factory | Repaired Exp. Sensor Array? 8891 | -7/Factory | Learned location of 2 exits from Upper Caves 8929 | -7/Factory | Repaired Lgt. Nuclear Core? 8957 | -7/Factory | Learned location of 1 exit from Hub_04(d) 9154 | -7/Factory | Entered Lower Caves 9155 | -7/Lower Caves | Identified exit to Lower Caves 9242 | -7/Lower Caves | Encountered a Warlord checkpoint 9252 | -7/Lower Caves | Learned Factory trap positions 9269 | -7/Lower Caves | Entered another Lower Caves area 9270 | -7/Lower Caves | Identified exit to Zion 9326 | -7/Lower Caves | Encountered a Warlord checkpoint 9357 | -7/Lower Caves | Learned Factory emergency access door positions 9429 | -7/Lower Caves | Build established: Hacker-Sprinter 9434 | -7/Lower Caves | Entered Zion 9453 | -7/Zion | Found Prototype Hackware 9453 | -7/Zion | Identified Exp. Hacking Suite 9487 | -7/Zion | Learned Factory garrison access intel 9505 | -7/Zion | Gained Derelict followers 9537 | -7/Zion | Received a visual enhancement algorithm 9648 | -7/Zion | Learned 8 Factory zone layouts 9704 | -7/Zion | Discovered new exit (range 16) 9788 | -7/Zion | Entered Proximity Caves 9788 | -6/Proximity Caves | Accompanied by 3 allies 10046 | -6/Proximity Caves | Learned Factory terminal intel 10633 | -6/Proximity Caves | Entered Factory 10633 | -6/Factory | Evolved 2 slots: Propulsion x1, Utility x1 10634 | -6/Factory | Identified exit to Lower Caves 10635 | -6/Factory | Loaded intel: 119 trap records 10637 | -6/Factory | Loaded intel: 25 terminal locations 10638 | -6/Factory | Loaded intel: 4 garrison access locations 10962 | -6/Factory | Build established: Wizard-Sprinter 11172 | -6/Factory | Discovered new exit (range 6) 11381 | -6/Factory | Identified exit to Factory 11567 | -6/Factory | Fabricated Cld. Nuclear Pulse Thruster (x1) 11612 | -6/Factory | Fabricated Cld. Nuclear Pulse Thruster? 12003 | -6/Factory | Build established: Wizard-Scout 12018 | -6/Factory | Learned Factory emergency access door positions 12083 | -6/Factory | Learned Factory trap positions 12086 | -6/Factory | Fabricated Cld. Nuclear Pulse Thruster (x1) 12105 | -6/Factory | Fabricated Imp. System Restoration Module (x2) 12136 | -6/Factory | Learned location of 2 exits from Archives 12180 | -6/Factory | Learned 2 Extension zone layouts 12216 | -6/Factory | Learned Factory terminal intel 12240 | -6/Factory | Learned Extension emergency access door positions 12272 | -6/Factory | Learned 2 Extension zone layouts 12313 | -6/Factory | Learned location of Hub_04(d) (-4) 12438 | -6/Factory | Repaired Assault Rifle 12528 | -6/Factory | Repaired Cld. Nuclear Pulse Thruster 12536 | -6/Factory | Manually triggered Chute Trap 12536 | -6/Factory | Sucked down chute 12536 | -6/Factory | Entered Waste 12541 | -6/Waste | Spotted C-40 Crusher 12541 | -6/Waste | Spotted C-40 Crusher 12543 | -6/Waste | Spotted C-40 Crusher 12546 | -6/Waste | Spotted C-40 Crusher 12547 | -6/Waste | Discovered new exit (range 16) 12547 | -6/Waste | Spotted C-40 Crusher 12548 | -6/Waste | Spotted C-40 Crusher 12550 | -6/Waste | Entered Factory 12551 | -6/Factory | Loaded intel: 91 trap records 12553 | -6/Factory | Loaded intel: 26 terminal locations 13064 | -6/Factory | Spotted B-75 Beast 13371 | -6/Factory | Fabricated Cld. Nuclear Pulse Thruster? 13401 | -6/Factory | Garrison activated, responded to threat 13483 | -6/Factory | Learned 2 Lower Caves zone layouts 13528 | -6/Factory | Learned location of 3 exits from Factory 13563 | -6/Factory | Learned location of Archives (-4) 13603 | -6/Factory | Learned location of 1 exit from Lower Caves 13625 | -6/Factory | Learned location of 1 exit from Cetus 13651 | -6/Factory | Learned Extension trap positions 13662 | -6/Factory | Repaired Structural Scanner 13730 | -6/Factory | Fabricated Mni. Smartbomb Launcher (x1) 14077 | -6/Factory | Fabricated Plasma Sword? 14293 | -6/Factory | Repaired Cld. Nuclear Pulse Thruster 14314 | -6/Factory | Repaired Shock Rifle 14645 | -6/Factory | Fabricated Cld. Nuclear Pulse Thruster (x1) 14698 | -6/Factory | Fabricated Adv. Hacking Suite (x1) 14948 | -6/Factory | Entered Lower Caves 14949 | -6/Lower Caves | Encountered a Warlord checkpoint 14949 | -6/Lower Caves | Identified exit to Lower Caves 14950 | -6/Lower Caves | Found DCF Scrap (16 items) 15031 | -6/Lower Caves | Learned Factory emergency access door positions 15059 | -6/Lower Caves | Learned location of 1 exit from Lower Caves 15130 | -6/Lower Caves | Entered another Lower Caves area 15151 | -6/Lower Caves | Learned location of 1 exit from Proximity Caves 15220 | -6/Lower Caves | Build established: Hacker-Sprinter 15347 | -6/Lower Caves | Encountered a Warlord checkpoint 15349 | -6/Lower Caves | Discovered new exit (range 11) 15398 | -6/Lower Caves | Entered Data Miner 15398 | -6/Data Miner | Discovered new exit (range 6) 15403 | -6/Data Miner | Met Data Miner 15414 | -6/Data Miner | Learned location of Section 7 (-3) 15414 | -6/Data Miner | Acquired the access code to Warlord's prototype stash 15417 | -6/Data Miner | Received God Mode back door access code from Data Miner 15423 | -6/Data Miner | Entered Proximity Caves 15449 | -5/Proximity Caves | Spotted B-75 Beast 15449 | -5/Proximity Caves | Learned location of Armory (-3) 15485 | -5/Proximity Caves | Learned Factory trap positions 15589 | -5/Proximity Caves | Entered Factory 15589 | -5/Factory | Evolved 2 slots: Propulsion x2 15590 | -5/Factory | Identified exit to Upper Caves 15591 | -5/Factory | Identified exit to Factory 15592 | -5/Factory | Loaded intel: 114 trap records 15758 | -5/Factory | Repaired Cld. Nuclear Pulse Thruster 15763 | -5/Factory | Fabricated Adv. Hacking Suite (x1) 16054 | -5/Factory | Build established: Wizard-Scout 16371 | -5/Factory | Fabricated Lgt. Neutrino Core? 16388 | -5/Factory | Repaired Broken Cld. Nuclear Pulse Thruster 16618 | -5/Factory | Repaired Imp. Light Armor Plating 16748 | -5/Factory | Learned Quarantine trap positions 16796 | -5/Factory | Learned 2 Proximity Caves zone layouts 16807 | -5/Factory | Fabricated Lrg. Storage Unit? 16836 | -5/Factory | Learned location of 1 exit from Quarantine 16868 | -5/Factory | Learned location of Testing (-2) 16892 | -5/Factory | Learned location of 2 exits from Factory 16964 | -5/Factory | Learned Quarantine scanalyzer intel 17011 | -5/Factory | Learned 4 Research zone layouts 17141 | -5/Factory | Repaired Cld. Nuclear Pulse Thruster 17584 | -5/Factory | Repaired Cld. Nuclear Pulse Thruster 17657 | -5/Factory | Repaired Exp. Sensor Array 17834 | -5/Factory | Cargo convoy interrupted 17936 | -5/Factory | Manually triggered Chute Trap 17936 | -5/Factory | Sucked down chute 17936 | -5/Factory | Entered Waste 17937 | -5/Waste | Identified exit to Factory 17938 | -5/Waste | Spotted C-40 Crusher 17938 | -5/Waste | Spotted C-40 Crusher 17944 | -5/Waste | Spotted C-40 Crusher 17944 | -5/Waste | Spotted C-40 Crusher 17944 | -5/Waste | Spotted C-40 Crusher 17945 | -5/Waste | Spotted C-40 Crusher 17948 | -5/Waste | Entered Factory 18348 | -5/Factory | Crushed by falling debris 18634 | -5/Factory | Fabricated Exp. Hacking Suite? 18723 | -5/Factory | Repaired Cld. Nuclear Pulse Thruster 19003 | -5/Factory | Fabricated Exp. Hacking Suite? 19028 | -5/Factory | Fabricated Exp. System Shield (x1) 19154 | -5/Factory | Learned location of 1 exit from Testing 19222 | -5/Factory | Learned location of 2 exits from Factory 19278 | -5/Factory | Learned location of 1 exit from Armory 19282 | -5/Factory | Repaired Phase Cannon 19321 | -5/Factory | Entered Upper Caves 19322 | -5/Upper Caves | Identified exit to Upper Caves 19333 | -5/Upper Caves | Encountered a Warlord checkpoint 19371 | -5/Upper Caves | Spotted B-75 Beast 19609 | -5/Upper Caves | Entered another Upper Caves area 19610 | -5/Upper Caves | Identified exit to Zhirov 19610 | -5/Upper Caves | Learned 12 Factory zone layouts 19693 | -5/Upper Caves | Spotted B-75 Beast 19696 | -5/Upper Caves | Attracted the attention of an 0b10 checkpoint 19771 | -5/Upper Caves | Found Alien Artifact 19771 | -5/Upper Caves | Identified Core Expander 19771 | -5/Upper Caves | Installed Core Expander, added new Propulsion slot 19793 | -5/Upper Caves | Build established: Hacker-Sprinter 19795 | -5/Upper Caves | Entered Zhirov 19795 | -5/Zhirov | Discovered new exit (range 3) 19798 | -5/Zhirov | Met Zhirov 19807 | -5/Zhirov | Learned location of Quarantine (-3) 19807 | -5/Zhirov | Learned location of Command (-1) 19809 | -5/Zhirov | Zhirov requested help retrieving the SGEMP Prototype 19826 | -5/Zhirov | Found Alien Artifact 19826 | -5/Zhirov | Identified Integrated Dissipator 19826 | -5/Zhirov | Installed Integrated Dissipator, increased core heat dissipation (+20) 19901 | -5/Zhirov | Found Alien Artifact 19942 | -5/Zhirov | Entered Proximity Caves 19950 | -4/Proximity Caves | Spotted B-86 Titan 19965 | -4/Proximity Caves | Learned location of 1 exit from Research 20005 | -4/Proximity Caves | Entered Factory 20005 | -4/Factory | Evolved 2 slots: Power x1, Utility x1 20006 | -4/Factory | Identified exit to Research 20057 | -4/Factory | Identified exit to Upper Caves 20057 | -4/Factory | Identified exit to Extension 20224 | -4/Factory | Fabricated Exp. Hacking Suite (x1) 20263 | -4/Factory | Central database locked down 20263 | -4/Factory | Adv. System Shield fried by hacking feedback 20349 | -4/Factory | Build established: Wizard-Scout 20421 | -4/Factory | Fabricated Exp. Hacking Suite? 20666 | -4/Factory | Learned Testing stockpile data 20703 | -4/Factory | Learned 2 Proximity Caves zone layouts 20753 | -4/Factory | Learned Testing terminal intel 20754 | -4/Factory | Learned 4 Research zone layouts 20756 | -4/Factory | Learned 12 Factory zone layouts 20760 | -4/Factory | Learned location of 2 exits from Factory 20768 | -4/Factory | Fabricated Adv. Gravity Neutralizer? 20799 | -4/Factory | Learned 2 Armory zone layouts 20984 | -4/Factory | Repaired Plasma Sword 21168 | -4/Factory | Sucked down chute 21168 | -4/Factory | Entered Waste 21174 | -4/Waste | Spotted C-40 Crusher 21176 | -4/Waste | Spotted C-40 Crusher 21178 | -4/Waste | Spotted C-40 Crusher 21180 | -4/Waste | Spotted C-40 Crusher 21180 | -4/Waste | Spotted C-40 Crusher 21182 | -4/Waste | Discovered new exit (range 10) 21183 | -4/Waste | EMP discharged 21184 | -4/Waste | Entered Factory 21294 | -4/Factory | Spotted B-86 Titan 21329 | -4/Factory | Repaired Broken Adv. Phase Shifter 21489 | -4/Factory | Discovered exit to Research (range 7) 21567 | -4/Factory | Fabricated Nanosword (x1) 21604 | -4/Factory | Fabricated Centrium Light Armor Plating (x1) 21890 | -4/Factory | Learned 4 Proximity Caves zone layouts 21893 | -4/Factory | Repaired Lgt. Neutrino Core 21910 | -4/Factory | Found Exp. Terrain Scan Processor 21912 | -4/Factory | Identified Transdimensional Reconstructor 21952 | -4/Factory | Repaired Broken Adv. Phase Shifter? 22081 | -4/Factory | Fabricated Adv. System Restoration Module? 22629 | -4/Factory | Entered Extension 22631 | -4/Extension | Loaded intel: 21 trap records 22661 | -4/Extension | Rescued a captive Derelict 22670 | -4/Extension | Rescued a captive Derelict 22693 | -4/Extension | Rescued A7 22696 | -4/Extension | Rescued a captive Derelict 22706 | -4/Extension | Rescued a captive Derelict 22706 | -4/Extension | Rescued a captive Derelict 22794 | -4/Extension | Spotted B-86 Titan 22797 | -4/Extension | Spotted B-86 Titan 22816 | -4/Extension | Rescued a captive Derelict 22817 | -4/Extension | Rescued a captive Derelict 22823 | -4/Extension | Murdered 6 allies 22843 | -4/Extension | Rescued a captive Derelict 22844 | -4/Extension | Lost 4 allies 22845 | -4/Extension | Rescued a captive Derelict 22846 | -4/Extension | Rescued a captive Derelict 22862 | -4/Extension | Rescued a captive Derelict 22865 | -4/Extension | Rescued a captive Derelict 22867 | -4/Extension | Rescued a captive Derelict 22905 | -4/Extension | Rescued a captive Derelict 22923 | -4/Extension | Rescued a captive Derelict 22958 | -4/Extension | Build established: Wizard-Sprinter 22994 | -4/Extension | Discovered exit to Research (range 10) 22994 | -4/Extension | Discovered new exit (range 6) 23011 | -4/Extension | Entered Cetus 23011 | -4/Cetus | Accompanied by 4 allies 23022 | -4/Cetus | Lost 3 allies 23029 | -4/Cetus | Spotted Cetus Guard 23030 | -4/Cetus | Spotted Cetus Guard 23030 | -4/Cetus | Spotted Cetus Guard 23031 | -4/Cetus | Spotted Cetus Guard 23036 | -4/Cetus | Allies destroyed Cetus Guard 23042 | -4/Cetus | Discovered new exit (range 15) 23045 | -4/Cetus | Entered Archives 23046 | -4/Archives | Identified exit to Hub_04(d) 23134 | -4/Archives | Discovered exit to Hub_04(d) (range 15) 23237 | -4/Archives | Unable to access archive contents 23447 | -4/Archives | Entered Hub_04(d) 23495 | -4/Hub_04(d) | Network Hub disabled 23496 | -4/Hub_04(d) | Spotted Lightning 23496 | -4/Hub_04(d) | Spotted Lightning 23496 | -4/Hub_04(d) | Spotted Lightning 23496 | -4/Hub_04(d) | Entered Research 23496 | -3/Research | Evolved 2 slots: Utility x2 23497 | -3/Research | Identified exit to Armory 23498 | -3/Research | Identified exit to Quarantine 23499 | -3/Research | Identified exit to Research 23773 | -3/Research | Repaired Cld. Nuclear Pulse Thruster 23874 | -3/Research | Warped through subspace 23881 | -3/Research | Self-destructed Last Messages --------------- 23841_ P-80 Master Gamma Rifle severed. 23844_ Sneak attack on P-80 Master. 23844_ Destroyed Mic. Antimatter Reactor. 23848_ Lgt. Ion Engine destroyed. 23849_ P-80 Master destroyed. 23854_ Exp. System Shield destroyed. 23859_ P-80 Master destroyed. 23860_ System corrupted: Matter fused (-7). 23862_ P-80 Master Unknown Hover Unit severed. 23864_ Mni. Fusion Reactor destroyed. 23864_ P-80 Master destroyed. 23867_ Acquired 66 matter. 23874_ Warped through subspace. 23874_ O-24 Administrator: "IFF HANDSHAKE FAILED. SECURING TERMINAL." 23875_ Dropped Adv. Energy Well. 23876_ Extracted 97 energy. 23878_ System corrupted: Energy discharge (-15). 23880_ Slug penetrates Terminal. 23880_ Terminal disabled. Map ----- +----------------------------------------------------+ | ???????????????????????????????## """!|""" ##??? | | ???????????????????????????????## !=! ! ##??? | | ???????????????????????????????## =![!=[! ##??? | | ???????????????????????????????########/#######??? | | ???????????????????????????????###### %=######??? | | ????????????????????????????######### #???????? | | ????????????????????????????# # #???????? | | ????????????????????????????# ! + #???????? | | ????????????????????????????# ! # #???????? | | ????????????????????????????# ! # #???????? | | ????????????????????????????# # #???????? | | ????????????????????????????# # #???????? | | ????????????????????????????# # #???????? | | ????????????????????????????# ! # #???????? | | ????????????????????????????# + +???????? | | ????????????????????????????# # #???????? | | ????????????????????????????# # #???????? | | ????????????###########+############# #???????? | | ????????##### #???????? | | ????? ! #???????? | | ????????????# #???????? | | ????????????# #???????? | | ????????????####+######+###### ###########????? | | ?????????????????????# ## # ! #????? | | ?????????????????????# #" # #????? | | ?????????????????????# o@""## # !!] #????? | | ?????????????????????# / ""## # !!] #????? | | ?????????????????????# "## # !] !#????? | | ?????????????????????# ""## # ?????? | | ?????????????????????# ""## # / ???????? | | ?????????????????????# ## # ?????????? | | ?????????????????????# ## ###+####???????? | | ?????????????????????# !! ## #???????? | | ?????????????????????# !! + #???????? | | ?????????????????????# ! ##w ###?????? | | ?????????????????????# ! ## ######### | | ?????????????????????#Y##############H "######## | | ?????????????????????##???????????? # R #/ | | ??????????????????????????????????? # # | | ??????????????????????????????????? + # = | | ??????????????????????????????????? # # | | ??????????????????????????????????? # # """ | | ??????????????????????????????????? # # """" | | ??????????????????????????????????? # # = """" | | ??????????????????????????????????? # # """ | | ??????????????????????????????????? # ###/##### | | ???????????????????????????????????## | | ????????????????????????????????????# ? | | ????????????????????????????????????# ? | | ????????????????????????????????????# | +----------------------------------------------------+ Best States ------------- Heat Dissipation 66 Energy Generation 35 Energy Capacity 265 Matter Stores 300 Matter Capacity 300 Sight Range 16 Robot Scan Range 20 Terrain Scan Range 16 Terrain Scan Density 10 ECM Strength 2 Power Amplification 30 Additional Mass Support 16 Armor Coverage 150 Propulsion Shielding 90 Phase Shifting 15 Evasion (%) 81 Targeting Accuracy 6 Recoil Reduction 3 Offensive Hacking 72 Defensive Hacking 30 Authchip Count 6 Trap Extractor Capacity 8 Item Schematics ----------------- Hcp. Storage Unit | -10/Materials | Hacked Lrg. Storage Unit | -10/Materials | Hacked Exp. Sensor Array | -7/Factory | Scanalyzed Transport Network Coupler | -7/Factory | Scanalyzed System Shield | -7/Factory | Hacked Imp. Trap Extractor | -7/Factory | Hacked Hacking Suite | -7/Factory | Hacked Imp. System Shield | -7/Factory | Hacked Imp. Hacking Suite | -7/Factory | Hacked Power Sword | -7/Factory | Hacked Cld. VTOL Module | -7/Factory | Scanalyzed Adv. Hacking Suite | -7/Factory | Hacked Adv. System Shield | -7/Factory | Hacked Assault Rifle | -7/Factory | Scanalyzed Imp. Datajack | -7/Factory | Scanalyzed Hrd. Heavy Armor Plating | -7/Zion | Archive Hpw. Shock Rifle | -7/Zion | Archive Adv. Terrain Scan Processor | -7/Zion | Archive Adv. Signal Interpreter | -7/Zion | Archive Med. Treads | -7/Zion | Archive Imp. Thermal Generator | -7/Zion | Archive Imp. Cooling System | -7/Zion | Archive Imp. Reaction Control System | -7/Zion | Archive Launcher Guidance Computer | -7/Zion | Archive Imp. Corruption Screen | -7/Zion | Archive Imp. Thermal Shield | -7/Zion | Archive Gauss Rifle | -7/Zion | Archive Weapon Cycler | -7/Zion | Archive Enh. Optical Array | -7/Zion | Archive Lrn. Missile Launcher | -7/Zion | Archive Cld. Nuclear Pulse Thruster | -6/Factory | Hacked Imp. System Restoration Module | -6/Factory | Hacked Gravity Neutralizer | -6/Factory | Hacked Lgt. Antimatter Reactor | -6/Factory | Hacked Adv. Melee Analysis Suite | -6/Factory | Hacked Mni. Smartbomb Launcher | -6/Factory | Hacked Imp. Light Armor Plating | -6/Factory | Scanalyzed Phase Cannon | -6/Factory | Scanalyzed Lgt. Neutrino Core | -6/Factory | Hacked Plasma Sword | -6/Factory | Hacked Combat Drone Bay | -6/Data Miner | Free Lgt. Regenerative Plating | -6/Data Miner | Free Imp. Matter Compressor | -6/Data Miner | Free Enh. Force Rifle | -6/Data Miner | Free Imp. Linear Gravjet | -6/Data Miner | Free Nanoactuators | -6/Data Miner | Free HERF Cannon | -6/Data Miner | Free Railgun | -6/Data Miner | Free Antimissile System | -6/Data Miner | Free Antigrav Array | -6/Data Miner | Free Exp. Hacking Suite | -5/Factory | Hacked Imp. Plasma Cutter | -5/Factory | Scanalyzed Exp. Melee Analysis Suite | -5/Factory | Hacked Field Propulsion Array | -5/Factory | Hacked Exp. Utility Shielding | -5/Factory | Hacked Exp. Power Shielding | -5/Factory | Hacked Mic. Antimatter Reactor | -5/Factory | Hacked Adv. Gravity Neutralizer | -5/Factory | Hacked Exp. System Shield | -5/Factory | Hacked Graphene Brace | -5/Factory | Hacked Exp. Terrain Scan Processor | -5/Factory | Hacked Assault Drone Bay | -5/Zhirov | Free Exp. Heat Sink | -5/Zhirov | Free Exp. Optical Array | -5/Zhirov | Free Imp. Arc Thrower | -5/Zhirov | Free Cld. Field Propulsion Drive | -4/Factory | Hacked Q-thruster | -4/Factory | Hacked Exp. Reaction Control System | -4/Factory | Scanalyzed Nanosword | -4/Factory | Hacked Centrium Light Armor Plating | -4/Factory | Hacked Quantum Shading Machine | -4/Factory | Hacked Adv. Phase Shifter | -4/Factory | Scanalyzed Adv. System Restoration Module | -4/Factory | Hacked Adv. Thermal Shield | -4/Extension | Hacked Adv. Quantum Shading Machine | -3/Research | Hacked Robot Schematics ------------------ K-01 Serf | -7/Zion | Archive W-25 Informer | -7/Zion | Archive L-41 Fighter | -7/Zion | Archive X-77 Beamer | -7/Zion | Archive Y-64 Sentinel | -6/Data Miner | Free S-27 Virus | -6/Data Miner | Free A-15 Conveyor | -6/Data Miner | Free A-27 Freighter | -6/Data Miner | Free H-66 Slayer | -6/Data Miner | Free Fabricated ------------ Imp. System Shield | x1 | -7/Factory | Authchip Imp. Trap Extractor | x2 | -7/Factory Imp. Hacking Suite | x1 | -7/Factory | Authchip Adv. Hacking Suite | x1 | -7/Factory | Authchip Adv. Hacking Suite | x1 | -7/Factory Adv. Hacking Suite | x1 | -7/Factory Adv. System Shield | x1 | -7/Factory Adv. System Restoration Module | x2 | -7/Factory | Preloaded Adv. Hacking Suite | x1 | -7/Factory Cld. Nuclear Pulse Thruster | x1 | -6/Factory | Authchip Cld. Nuclear Pulse Thruster | x1 | -6/Factory | Authchip Cld. Nuclear Pulse Thruster | x1 | -6/Factory | Authchip Imp. System Restoration Module | x2 | -6/Factory Cld. Nuclear Pulse Thruster | x1 | -6/Factory | Authchip Mni. Smartbomb Launcher | x1 | -6/Factory | Authchip Plasma Sword | x1 | -6/Factory | Authchip Cld. Nuclear Pulse Thruster | x1 | -6/Factory | Authchip Adv. Hacking Suite | x1 | -6/Factory | Authchip Adv. Hacking Suite | x1 | -5/Factory | Authchip Lgt. Neutrino Core | x1 | -5/Factory | Authchip Lrg. Storage Unit | x1 | -5/Factory Exp. Hacking Suite | x1 | -5/Factory | Authchip Exp. Hacking Suite | x1 | -5/Factory | Authchip Exp. System Shield | x1 | -5/Factory | Authchip Exp. Hacking Suite | x1 | -4/Factory | Authchip Exp. Hacking Suite | x1 | -4/Factory | Authchip Adv. Gravity Neutralizer | x1 | -4/Factory | Authchip Nanosword | x1 | -4/Factory | Authchip Centrium Light Armor Plating | x1 | -4/Factory | Authchip Adv. System Restoration Module | x2 | -4/Factory | Authchip Alien Tech Used ----------------- Core Expander Integrated Dissipator Transdimensional Reconstructor Achievements -------------- None Challenges ------------ None Game ------ Seed RiotBoltAirjet Manual? 0 Play Time 12:53:22 Cumulative 434.2 hours Start 2024.11.20 @ 17:27:51 End 2024.12.06 @ 22:56:27 Sessions 29 Manual Loads 0 Difficulty Rogue Special Mode None Game No. 231 Rogue 87 Adventurer 144 Explorer 0 Win Type - Total 7 Types 4/0/2/1/0/0/0/0/0 Lore% 60 Gallery% 80 Achievement% 67 Wizard Run 0 Options --------- Layout 0 ASCII 0 Keyboard 0 Movement Mouse Keybinds 0 Fullscreen 2 Font 20/SmallcapsGlow Map View 66x50 Zoom Use 0% Tactical HUD 1 Map Filters NONE Filters NONE Steam X RUN: 1d5fcdc1-0449-4b5c-94ba-2ef530df8038